Workbook

Sheet BExRepositorySheet (hidden)
A1: 7

Sheet Ingresos
A2: EMPRESA DE ACUEDUCTO ALCANTARILLADO DE BOGOTA
A3: EJECUCION PRESUPUESTAL DE INGRESOS
A4: A 31 DE JULIO DE 2020
C5: 1 | D5: 2 | E5: 3 | F5: 4 | G5: 5 | H5: 6 | I5: 7=(6/4) | J5: 8=(4-6)
A6: CODIGO SECRETARIA DE HACIENDA | B6: RUBRO | C6: PRESUPUESTO INICIAL | D6: MODIFICACIONES MES | E6: MODIFICACIONES ACUMULADAS | F6: PRESUPUESTO DEFINITIVO | G6: RECAUDOS MES | H6: RECAUDOS ACUMULADOS | I6: % EJEC PPTAL | J6: SALDO POR RECAUDAR
A7: TOTAL INGRESOS + DISPONIBILIDAD INICIAL | C7: 5839715601000 | E7: 40333732617 | F7: 5880049333617 | G7: 171897612033 | H7: 2140970423195 | I7: 0.3641075613 | J7: 3739078910422
A8: 310000000000000 | B8: DISPONIBILIDAD INICIAL | C8: 767299231000 | E8: 200597436247 | F8: 967896667247 | H8: 885286490456 | I8: 0.9146497972 | J8: 82610176791
A9: 310000000000000 | B9: DISPONIBILIDAD INICIAL | C9: 767299231000 | E9: 200597436247 | F9: 967896667247 | H9: 885286490456 | I9: 0.9146497972 | J9: 82610176791
A10: 320000000000000 | B10: INGRESOS | C10: 5072416370000 | E10: -160263703630 | F10: 4912152666370 | G10: 171897612033 | H10: 1255683932739 | I10: 0.2556280348 | J10: 3656468733631
A11: 321000000000000 | B11: INGRESOS CORRIENTES | C11: 2820980097000 | E11: -30923604999 | F11: 2790056492001 | G11: 147517529164 | H11: 995571360420 | I11: 0.356828388 | J11: 1794485131581
A12: 321010000000000 | B12: INGRESOS DE EXPLOTACION | C12: 1891699605000 | F12: 1891699605000 | G12: 139320338364 | H12: 972003485848 | I12: 0.513825495 | J12: 919696119152
A13: 321010200000000 | B13: VENTA DE SERVICIOS | C13: 1867900061000 | F13: 1867900061000 | G13: 137100699265 | H13: 950214343678 | I13: 0.5087072716 | J13: 917685717322
A14: 321010201000000 | B14: SERVICIO ACUEDUCTO | C14: 957909591000 | F14: 957909591000 | G14: 70371864884 | H14: 487583624570 | I14: 0.5090079786 | J14: 470325966430
A15: 321010202000000 | B15: SERVICIO ALCANTARILLADO | C15: 909990470000 | F15: 909990470000 | G15: 66728834381 | H15: 462630719108 | I15: 0.5083907297 | J15: 447359750892
A16: 321019900000000 | B16: OTROS INGRESOS DE EXPLOTACION | C16: 23799544000 | F16: 23799544000 | G16: 2219639099 | H16: 21789142170 | I16: 0.9155277164 | J16: 2010401830
A17: 321019902000000 | B17: INTERESES A USUARIOS | C17: 2987672000 | F17: 2987672000 | G17: 582838676 | H17: 5162261714 | I17: 1.727854234 | J17: -2174589714
A18: 321019903000000 | B18: PUBLICACIONES | C18: 6794000 | F18: 6794000 | G18: 412238 | H18: 9050388 | I18: 1.332114807 | J18: -2256388
A19: 321019904000000 | B19: SERVICIOS | C19: 529000000 | F19: 529000000 | G19: 33307848 | H19: 171330937 | I19: 0.3238770076 | J19: 357669063
A20: 321019905000000 | B20: CUOTAS PARTES PENSIONALES | G20: 107313588 | H20: 602021984 | J20: -602021984
A21: 321019906000000 | B21: EXTRAORDINARIOS RECUPERACIÓN | G21: 271383577 | H21: 8444609766 | J21: -8444609766
A22: 321019907000000 | B22: INGRESOS CENTRAL HIDROELÉCTRICA | C22: 10889390000 | F22: 10889390000 | G22: 568620359 | H22: 3111320189 | I22: 0.2857203378 | J22: 7778069811
A23: 321019908000000 | B23: SANCIONES Y MULTAS | G23: 11566226 | H23: 14557706 | J23: -14557706
A24: 321019909000000 | B24: COMISIONES | C24: 9386688000 | F24: 9386688000 | G24: 644196587 | H24: 4273989486 | I24: 0.4553245496 | J24: 5112698514
A25: 321020000000000 | B25: OTROS INGRESOS CORRIENTES | C25: 929280492000 | E25: -30923604999 | F25: 898356887001 | G25: 8197190800 | H25: 23567874572 | I25: 0.02623442299 | J25: 874789012429
A26: 321020100000000 | B26: RENTAS CONTRACTUALES | C26: 929280492000 | E26: -30923604999 | F26: 898356887001 | G26: 8197190800 | H26: 23567874572 | I26: 0.02623442299 | J26: 874789012429
A27: 321020199000000 | B27: OTRAS RENTAS CONTRACTUALES | C27: 929280492000 | E27: -30923604999 | F27: 898356887001 | G27: 8197190800 | H27: 23567874572 | I27: 0.02623442299 | J27: 874789012429
A28: 322000000000000 | B28: TRANSFERENCIAS | C28: 244494114000 | E28: -75498561686 | F28: 168995552314 | G28: -5672501404 | H28: 56528116125 | I28: 0.3344946974 | J28: 112467436189
A29: 322030000000000 | B29: MUNICIPIOS | C29: 2068000000 | F29: 2068000000 | G29: 369999165 | H29: 369999165 | I29: 0.1789164241 | J29: 1698000835
A30: 322030000000000 | B30: MUNICIPIOS | C30: 2068000000 | F30: 2068000000 | G30: 369999165 | H30: 369999165 | I30: 0.1789164241 | J30: 1698000835
A31: 322040000000000 | B31: ADMINISTRACION CENTRAL | C31: 242426114000 | E31: -75498561686 | F31: 166927552314 | G31: -6042500569 | H31: 56158116960 | I31: 0.3364220956 | J31: 110769435354
A32: 322040300000000 | B32: SECRETARIA DISTRITAL DE HACIENDA | C32: 78525000000 | F32: 78525000000 | G32: -6042500569 | H32: 10199484642 | I32: 0.1298883749 | J32: 68325515358
A33: 322040500000000 | B33: SDH - MÍNIMO VITAL | C33: 73823345000 | F33: 73823345000 | H33: 34220083636 | I33: 0.4635401395 | J33: 39603261364
A34: 322040600000000 | B34: SDH - LEY 99 DE 1993 | C34: 90077769000 | E34: -90077769000
A35: 322040800000000 | B35: LEY 99 DE 1993, SUBSIDIOS Y MÍNIMO VITAL - VIGENCIA ANTERIOR | E35: 14579207314 | F35: 14579207314 | H35: 11738548682 | I35: 0.8051568531 | J35: 2840658632
A36: 323000000000000 | B36: RECURSOS DE CAPITAL | C36: 2006942159000 | E36: -53841536945 | F36: 1953100622055 | G36: 30052584273 | H36: 203584456194 | I36: 0.1042365426 | J36: 1749516165861
A37: 323010000000000 | B37: RECURSOS DEL CREDITO | C37: 1689330396000 | E37: -53841536945 | F37: 1635488859055 | J37: 1635488859055
A38: 323010100000000 | B38: CREDITO INTERNO | C38: 1689330396000 | E38: -53841536945 | F38: 1635488859055 | J38: 1635488859055
A39: 323010101000000 | B39: VIGENCIA | C39: 1689330396000 | E39: -53841536945 | F39: 1635488859055 | J39: 1635488859055
A40: 323020000000000 | B40: RENDIMIENTOS POR OPERACIONES FINANCIERAS | C40: 72159584000 | F40: 72159584000 | G40: 25255110401 | H40: 79541693639 | I40: 1.102302553 | J40: -7382109639
A41: 323020000000000 | B41: RENDIMIENTOS POR OPERACIONES FINANCIERAS | C41: 72159584000 | F41: 72159584000 | G41: 25255110401 | H41: 79541693639 | I41: 1.102302553 | J41: -7382109639
A42: 323090000000000 | B42: OTROS RECURSOS DE CAPITAL | C42: 245452179000 | F42: 245452179000 | G42: 4797473872 | H42: 124042762555 | I42: 0.5053642753 | J42: 121409416445
A43: 323090100000000 | B43: RECUPERACION PRESTAMOS - BIENESTAR | C43: 10700000000 | F43: 10700000000 | G43: 4785524372 | H43: 8372676811 | I43: 0.7824931599 | J43: 2327323189
A44: 323090200000000 | B44: INDEMNIZACIONES COMPAÑIAS DE SEGURO | G44: 11949500 | H44: 45224485 | J44: -45224485
A45: 323090300000000 | B45: RECURSOS FIDUCIA | C45: 119249830000 | F45: 119249830000 | J45: 119249830000
A46: 323099900000000 | B46: OTROS | C46: 115502349000 | F46: 115502349000 | H46: 115624861259 | I46: 1.001060691 | J46: -122512259

Sheet Gastos
A2: EMPRESA DE ACUEDUCTO ALCANTARILLADO DE BOGOTA
A3: EJECUCION PRESUPUESTAL DE GASTOS
A4: A 31 DE JULIO DE 2020
C5: 1 | D5: 2 | E5: 3 | F5: 4=(1+3) | G5: 5 | H5: 6=(4-5) | I5: 7 | J5: 8 | K5: 9=(8/6) | L5: 11 | M5: 12 | N5: 13=(12/6)
A6: CODIGO SECRETARIA DE HACIENDA | B6: RUBRO | C6: PRESUPUESTO INICIAL | D6: MODIFICACIONES MES | E6: MODIFICACIONES ACUMULADAS | F6: PRESUPUESTO DEFINITIVO | G6: SUSPENSION | H6: APROPIACION DISPONIBLE | I6: COMPROMISOS MES | J6: COMPROMISOS ACUMULADOS | K6: % EJEC PPTAL | L6: AUTORIZACIONES DE GIRO | N6: % EJEC AUT. GIRO
L7: MES | M7: ACUMULADO
A8: TOTAL GASTOS + DISPONIBILIDAD FINAL | C8: 5839715601000 | E8: 40333732617 | F8: 5880049333617 | H8: 5880049333617 | I8: 123993597185 | J8: 3213890175886 | K8: 0.5465753761 | L8: 158038780468 | M8: 1157168149819 | N8: 0.1967956533
A9: 330000000000000 | B9: GASTOS | C9: 5162593543000 | E9: -75421242685 | F9: 5087172300315 | H9: 5087172300315 | I9: 123993597185 | J9: 3213890175886 | K9: 0.6317635783 | L9: 158038780468 | M9: 1157168149819 | N9: 0.2274678508
A10: 331000000000000 | B10: GASTOS DE FUNCIONAMIENTO | C10: 1523729930000 | E10: 10077319439 | F10: 1533807249439 | H10: 1533807249439 | I10: 65594389584 | J10: 849669199184 | K10: 0.5539608706 | L10: 77773267041 | M10: 690759603323 | N10: 0.4503561993
A11: 331010000000000 | B11: SERVICIOS PERSONALES | C11: 387255360000 | D11: -110390157 | E11: 4673275125 | F11: 391928635125 | H11: 391928635125 | I11: 29605294620 | J11: 207071679324 | K11: 0.528340266 | L11: 26501540741 | M11: 180742481688 | N11: 0.4611617154
A12: 331010100000000 | B12: SERVICIOS PERSONALES ASOCIADOS A LA NOMINA | C12: 254218541000 | D12: -184000000 | E12: -186000000 | F12: 254032541000 | H12: 254032541000 | I12: 16204442265 | J12: 125887788510 | K12: 0.4955577266 | L12: 16085391205 | M12: 125757617604 | N12: 0.4950453084
A13: 331010101000000 | B13: SUELDOS PERSONAL DE NOMINA | C13: 141860559000 | D13: -184000000 | E13: -184000000 | F13: 141676559000 | H13: 141676559000 | I13: 10965866884 | J13: 75639666260 | K13: 0.5338897754 | L13: 10964478729 | M13: 75636843915 | N13: 0.5338698543
A14: 331010102000000 | B14: GASTOS DE REPRESENTACION | C14: 73834000 | F14: 73834000 | H14: 73834000 | I14: 6390206 | J14: 33243035 | K14: 0.450240201 | L14: 6390206 | M14: 33243035 | N14: 0.450240201
A15: 331010103000000 | B15: HORAS EXTRAS, DOMINICALES, FESTIVOS, RECARGO NOCTURNO | C15: 17666301000 | F15: 17666301000 | H15: 17666301000 | I15: 1668988773 | J15: 10888603373 | K15: 0.6163487972 | L15: 1668988773 | M15: 10888603373 | N15: 0.6163487972
A16: 331010104000000 | B16: SUBSIDIO DE TRANSPORTE | C16: 2030387000 | F16: 2030387000 | H16: 2030387000 | I16: 59458300 | J16: 551596514 | K16: 0.2716706293 | L16: 59458300 | M16: 551596514 | N16: 0.2716706293
A17: 331010105000000 | B17: SUBSIDIO DE ALIMENTACION | C17: 9684978000 | F17: 9684978000 | H17: 9684978000 | I17: 755215230 | J17: 5522643214 | K17: 0.57022775 | L17: 755215230 | M17: 5522643214 | N17: 0.57022775
A18: 331010106000000 | B18: BONIFICACION POR SERVICIOS PRESTADOS | C18: 435123000 | F18: 435123000 | H18: 435123000 | I18: 27033124 | J18: 152859588 | K18: 0.3513020181 | L18: 27033124 | M18: 152859588 | N18: 0.3513020181
A19: 331010107000000 | B19: PRIMA SEMESTRAL | C19: 16283229000 | E19: 650000000 | F19: 16933229000 | H19: 16933229000 | I19: 475690180 | J19: 16859245172 | K19: 0.9956308494 | L19: 472842276 | M19: 16856397268 | N19: 0.995462665
A20: 331010109000000 | B20: PRIMA DE NAVIDAD | C20: 17204839000 | F20: 17204839000 | H20: 17204839000 | I20: 27576476 | J20: 113854096 | K20: 0.00661756242 | L20: 26996915 | M20: 112250561 | N20: 0.006524359862
A21: 331010110000000 | B21: PRIMA DE VACACIONES | C21: 18158924000 | E21: -550000000 | F21: 17608924000 | H21: 17608924000 | I21: 887091130 | J21: 6523486650 | K21: 0.3704648081 | L21: 883041163 | M21: 6514915581 | N21: 0.3699780623
A22: 331010111000000 | B22: PRIMA TECNICA | C22: 4536541000 | F22: 4536541000 | H22: 4536541000 | I22: 369840409 | J22: 2479510623 | K22: 0.5465641384 | L22: 369840409 | M22: 2479510623 | N22: 0.5465641384
A23: 331010112000000 | B23: OTRAS PRIMAS Y BONIFICACIONES | C23: 10001947000 | E23: -102000000 | F23: 9899947000 | H23: 9899947000 | I23: 572249239 | J23: 4262565443 | K23: 0.430564471 | L23: 462063766 | M23: 4148239390 | N23: 0.419016323
A24: 331010114000000 | B24: QUINQUENIO | C24: 15353891000 | F24: 15353891000 | H24: 15353891000 | I24: 389042314 | J24: 2509655765 | K24: 0.1634540564 | L24: 389042314 | M24: 2509655765 | N24: 0.1634540564
A25: 331010115000000 | B25: INDEMNIZACIONES LABORALES | C25: 250000000 | F25: 250000000 | H25: 250000000 | J25: 53026845 | K25: 0.21210738 | M25: 53026845 | N25: 0.21210738
A26: 331010116000000 | B26: CONVENCIONES COLECTIVAS O CONVENIOS | C26: 677988000 | F26: 677988000 | H26: 677988000 | J26: 297831932 | K26: 0.4392879107 | M26: 297831932 | N26: 0.4392879107
A27: 331010200000000 | B27: SERVICIOS PERSONALES INDIRECTOS | C27: 55095034000 | D27: -86390157 | E27: 3467275125 | F27: 58562309125 | H27: 58562309125 | I27: 8734464993 | J27: 36871387322 | K27: 0.6296095197 | L27: 3862817004 | M27: 15094880753 | N27: 0.2577576086
A28: 331010203000000 | B28: HONORARIOS EMPRESA | C28: 48860877000 | D28: -86390156 | E28: 719716965 | F28: 49580593965 | H28: 49580593965 | I28: 8397672522 | J28: 31968660093 | K28: 0.6447817087 | L28: 3644110233 | M28: 10596758433 | N28: 0.2137279445
A29: 331010204000000 | B29: REMUNERACION SERVICIOS TECNICOS | C29: 2244995000 | D29: -1 | E29: 49999999 | F29: 2294994999 | H29: 2294994999 | I29: 178349000 | J29: 648920022 | K29: 0.2827544384 | L29: 60263300 | M29: 244315113 | N29: 0.1064556189
A30: 331010299000000 | B30: OTROS GASTOS DE PERSONAL | C30: 3989162000 | E30: 2697558161 | F30: 6686720161 | H30: 6686720161 | I30: 158443471 | J30: 4253807207 | K30: 0.6361575039 | L30: 158443471 | M30: 4253807207 | N30: 0.6361575039
A31: 331010300000000 | B31: APORTES PATRONALES AL SECTOR PRIVADO Y PUBLICO | C31: 77941785000 | D31: 160000000 | E31: 1392000000 | F31: 79333785000 | H31: 79333785000 | I31: 4666387362 | J31: 44312503492 | K31: 0.5585577884 | L31: 6553332532 | M31: 39889983331 | N31: 0.5028120533
A32: 331010301000000 | B32: APORTES PATRONALES AL SECTOR PRIVADO | C32: 54959717000 | E32: 680000000 | F32: 55639717000 | H32: 55639717000 | I32: 3189990894 | J32: 29940081922 | K32: 0.5381062941 | L32: 4277602183 | M32: 26877189192 | N32: 0.4830576186
A33: 331010301010000 | B33: CESANTIAS FONDOS PRIVADOS | C33: 5752702000 | E33: 680000000 | F33: 6432702000 | H33: 6432702000 | J33: 6416334057 | K33: 0.9974555105 | M33: 6416334057 | N33: 0.9974555105
A34: 331010301020000 | B34: PENSIONES FONDOS PRIVADOS | C34: 9728294000 | F34: 9728294000 | H34: 9728294000 | I34: 655133554 | J34: 4484991867 | K34: 0.4610255269 | L34: 632451628 | M34: 3830706711 | N34: 0.3937696282
A35: 331010301030000 | B35: SALUD EPS PRIVADAS | C35: 30202482000 | F35: 30202482000 | H35: 30202482000 | I35: 1918395440 | J35: 13944259898 | K35: 0.4616925158 | L35: 2384117755 | M35: 12133435324 | N35: 0.4017363647
A36: 331010301050000 | B36: CAJA DE COMPENSACION | C36: 9276239000 | F36: 9276239000 | H36: 9276239000 | I36: 616461900 | J36: 5094496100 | K36: 0.5491984521 | L36: 1261032800 | M36: 4496713100 | N36: 0.4847560633
A37: 331010302000000 | B37: APORTES PATRONALES AL SECTOR PUBLICO | C37: 22982068000 | D37: 160000000 | E37: 712000000 | F37: 23694068000 | H37: 23694068000 | I37: 1476396468 | J37: 14372421570 | K37: 0.6065831148 | L37: 2275730349 | M37: 13012794139 | N37: 0.5492005062
A38: 331010302010000 | B38: CESANTIAS FONDOS PÚBLICOS | C38: 2527769000 | E38: 450000000 | F38: 2977769000 | H38: 2977769000 | J38: 2941222386 | K38: 0.9877268472 | M38: 2941180290 | N38: 0.9877127104
A39: 331010302020000 | B39: PENSIONES FONDOS PÚBLICOS | C39: 11903800000 | F39: 11903800000 | H39: 11903800000 | I39: 1047358788 | J39: 7584869683 | K39: 0.6371805376 | L39: 1031097889 | M39: 6643894028 | N39: 0.5581321954
A40: 331010302030000 | B40: SALUD EPS PUBLICOS | C40: 55479000 | D40: 160000000 | E40: 262000000 | F40: 317479000 | H40: 317479000 | I40: 7748280 | J40: 164687900 | K40: 0.5187363574 | L40: 29529560 | M40: 143061720 | N40: 0.4506178991
A41: 331010302040000 | B41: RIESGOS PROFESIONALES SECTOR PUBLICO | C41: 2895755000 | F41: 2895755000 | H41: 2895755000 | I41: 210202400 | J41: 1480350501 | K41: 0.5112140015 | L41: 203004400 | M41: 1269168901 | N41: 0.4382860087
A42: 331010302050000 | B42: ICBF | C42: 3382106000 | F42: 3382106000 | H42: 3382106000 | I42: 126646900 | J42: 1320739300 | K42: 0.3905079557 | L42: 607243900 | M42: 1209260100 | N42: 0.3575464814
A43: 331010302060000 | B43: SENA | C43: 2217159000 | F43: 2217159000 | H43: 2217159000 | I43: 84440100 | J43: 880551800 | K43: 0.3971532037 | L43: 404854600 | M43: 806229100 | N43: 0.3636316114
A44: 331020000000000 | B44: GASTOS GENERALES | C44: 535521585000 | D44: 3710797106 | E44: 6562625074 | F44: 542084210074 | H44: 542084210074 | I44: 21696854203 | J44: 256145550164 | K44: 0.472519851 | L44: 22073658329 | M44: 201828106001 | N44: 0.3723187325
A45: 331020100000000 | B45: ADQUISICION DE BIENES | C45: 52613709000 | D45: -130727323 | E45: 243165314 | F45: 52856874314 | H45: 52856874314 | I45: 1343189790 | J45: 19558160561 | K45: 0.3700211338 | L45: 6993387351 | M45: 11760102493 | N45: 0.2224895559
A46: 331020101000000 | B46: DOTACION | C46: 6302138000 | E46: 4888632 | F46: 6307026632 | H46: 6307026632 | I46: 414677541 | J46: 643077541 | K46: 0.1019620779 | L46: 213600000 | M46: 223600000 | N46: 0.03545252193
A47: 331020102000000 | B47: MATERIALES Y SUMINISTROS | C47: 19815490000 | D47: -6338152 | E47: 357275188 | F47: 20172765188 | H47: 20172765188 | I47: 610201401 | J47: 2311503760 | K47: 0.1145853699 | L47: 438298643 | M47: 649140904 | N47: 0.03217907401
A48: 331020103000000 | B48: GASTOS DE COMPUTADOR | C48: 22303043000 | D48: -129730254 | E48: -129730254 | F48: 22173312746 | H48: 22173312746 | I48: 317331998 | J48: 12722791666 | K48: 0.5737884912 | L48: 6114601147 | M48: 10459821958 | N48: 0.4717302316
A49: 331020104000000 | B49: COMBUSTIBLES, LUBRICANTES Y LLANTAS | C49: 4193038000 | D49: 5341083 | E49: 10731748 | F49: 4203769748 | H49: 4203769748 | I49: 978850 | J49: 3880787594 | K49: 0.923168448 | L49: 226887561 | M49: 427539631 | N49: 0.101703865
A50: 331020200000000 | B50: ADQUISICION DE SERVICIOS | C50: 132207317000 | D50: -211157863 | E50: 2723655472 | F50: 134930972472 | H50: 134930972472 | I50: 10110949157 | J50: 51845396588 | K50: 0.3842364406 | L50: 5907576488 | M50: 15367710550 | N50: 0.1138931282
A51: 331020201000000 | B51: VIATICOS Y GASTOS DE VIAJE | C51: 1146346000 | F51: 1146346000 | H51: 1146346000 | I51: 16782113 | J51: 236405452 | K51: 0.2062252165 | L51: 16782113 | M51: 146405452 | N51: 0.1277148889
A52: 331020202000000 | B52: GASTOS DE TRANSPORTE Y COMUNICACIÓN | C52: 14825487000 | D52: 314698597 | E52: 418098997 | F52: 15243585997 | H52: 15243585997 | I52: 507962751 | J52: 6105704239 | K52: 0.4005425128 | L52: 764196185 | M52: 3588028303 | N52: 0.2353795428
A53: 331020203000000 | B53: IMPRESOS Y PUBLICACIONES | C53: 352208000 | E53: 7190000 | F53: 359398000 | H53: 359398000 | I53: 745728 | J53: 76039617 | K53: 0.2115749587 | L53: 4044408 | M53: 27552817 | N53: 0.07666380169
A54: 331020204000000 | B54: MANTENIMIENTO Y REPARACIONES | C54: 65110277000 | D54: -617386970 | E54: -3851692362 | F54: 61258584638 | H54: 61258584638 | I54: 259449386 | J54: 23529604918 | K54: 0.3841029801 | L54: 2919010878 | M54: 6045887161 | N54: 0.09869452905
A55: 331020205000000 | B55: ARRENDAMIENTOS | C55: 11008291000 | F55: 11008291000 | H55: 11008291000 | I55: 57544965 | J55: 5481623680 | K55: 0.4979541039 | L55: 327541648 | M55: 1473027402 | N55: 0.1338107252
A56: 331020206000000 | B56: SEGUROS | C56: 17325844000 | D56: 75530510 | E56: 5480530510 | F56: 22806374510 | H56: 22806374510 | I56: 8553687753 | J56: 10059941862 | K56: 0.4411021952 | L56: 1444171694 | M56: 1502293938 | N56: 0.06587166835
A57: 331020207000000 | B57: SUMINISTRO DE ALIMENTOS | C57: 3850289000 | E57: 450000000 | F57: 4300289000 | H57: 4300289000
A58: 331020208000000 | B58: SERVICIOS PUBLICOS | C58: 5316766000 | D58: 16000000 | E58: 16000000 | F58: 5332766000 | H58: 5332766000 | I58: 31972716 | J58: 4381322257 | K58: 0.8215853193 | L58: 276703894 | M58: 2103473554 | N58: 0.3944432503
A59: 331020209000000 | B59: CAPACITACION | C59: 700001000 | F59: 700001000 | H59: 700001000 | I59: 18873400 | J59: 57862036 | K59: 0.08265993334 | L59: 8403900 | M59: 26603636 | N59: 0.03800513999
A60: 331020210000000 | B60: BIENESTAR E INCENTIVOS | C60: 5047781000 | E60: 157337082 | F60: 5205118082 | H60: 5205118082
A61: 331020211000000 | B61: PROMOCION INSTITUCIONAL | C61: 4797415000 | E61: -48510909 | F61: 4748904091 | H61: 4748904091 | I61: 241446345 | J61: 436062803 | K61: 0.09182388076 | L61: 35330059 | M61: 81508520 | N61: 0.01716364838
A62: 331020212000000 | B62: INTERESES Y COMISIONES | C62: 702600000 | E62: -300000000 | F62: 402600000 | H62: 402600000 | J62: 329363000 | K62: 0.8180899155 | L62: 31794522 | M62: 34638436 | N62: 0.08603685047
A63: 331020213000000 | B63: SALUD OCUPACIONAL | C63: 1864012000 | E63: 394702154 | F63: 2258714154 | H63: 2258714154 | I63: 422484000 | J63: 1077339724 | K63: 0.4769703692 | L63: 79597187 | M63: 264164331 | N63: 0.1169534138
A64: 331020214000000 | B64: PROGRAMAS Y CONVENIOS INSTITUCIONES | C64: 160000000 | F64: 160000000 | H64: 160000000 | J64: 74127000 | K64: 0.46329375 | M64: 74127000 | N64: 0.46329375
A65: 331020300000000 | B65: OTROS GASTOS GENERALES | C65: 350700559000 | D65: 4052682292 | E65: 3595804288 | F65: 354296363288 | H65: 354296363288 | I65: 10242715256 | J65: 184741993015 | K65: 0.5214335008 | L65: 9172694490 | M65: 174700292958 | N65: 0.4930908444
A66: 331020301000000 | B66: IMPUESTOS, TASAS Y MULTAS | C66: 328691060000 | D66: -394414000 | E66: -1062361665 | F66: 327628698335 | H66: 327628698335 | I66: 8282053476 | J66: 180624748345 | K66: 0.5513093 | L66: 8848159282 | M66: 173572638164 | N66: 0.5297845978
A67: 331020302000000 | B67: SENTENCIAS JUDICIALES | C67: 750000000 | F67: 750000000 | H67: 750000000 | J67: 8254610 | K67: 0.01100614667 | M67: 8254610 | N67: 0.01100614667
A68: 331020399000000 | B68: OTROS GASTOS GENERALES | C68: 21259499000 | D68: 4447096292 | E68: 4658165953 | F68: 25917664953 | H68: 25917664953 | I68: 1960661780 | J68: 4108990060 | K68: 0.1585401334 | L68: 324535208 | M68: 1119400184 | N68: 0.04319062639
A69: 331030000000000 | B69: TRANSFERENCIAS CORRIENTES | C69: 423259304000 | D69: -75530510 | E69: -5545942087 | F69: 417713361913 | H69: 417713361913 | I69: 14624174452 | J69: 204852822360 | K69: 0.490414818 | L69: 19198040944 | M69: 186858366972 | N69: 0.4473363412
A70: 331030100000000 | B70: TRANSFERENCIAS AL SECTOR PUBLICO | C70: 141264690000 | F70: 141264690000 | H70: 141264690000 | J70: 60000000000 | K70: 0.4247345887 | M70: 60000000000 | N70: 0.4247345887
A71: 331030100000000 | B71: TRANSFERENCIAS AL SECTOR PUBLICO | C71: 141264690000 | F71: 141264690000 | H71: 141264690000 | J71: 60000000000 | K71: 0.4247345887 | M71: 60000000000 | N71: 0.4247345887
A72: 331030300000000 | B72: TRANSFERENCIAS DE PREVISION Y SEGURIDAD SOCIAL | C72: 281294614000 | D72: -75530510 | E72: -5802247848 | F72: 275492366152 | H72: 275492366152 | I72: 14571872215 | J72: 144685075664 | K72: 0.5251872409 | L72: 19145738707 | M72: 126690620276 | N72: 0.4598698035
A73: 331030301000000 | B73: PENSIONES Y JUBILACIONES | C73: 194666163000 | E73: -1130000000 | F73: 193536163000 | H73: 193536163000 | I73: 13687925679 | J73: 109559161306 | K73: 0.5660914199 | L73: 13720881904 | M73: 109458886107 | N73: 0.5655732986
A74: 331030302000000 | B74: CESANTIAS | C74: 19026289000 | F74: 19026289000 | H74: 19026289000 | I74: 801019536 | J74: 9263846080 | K74: 0.48689716 | L74: 4953884708 | M74: 9259047374 | N74: 0.4866449455
A75: 331030303000000 | B75: OTRAS TRANSFERENCIAS DE PREVISION SOCIAL | C75: 67602162000 | D75: -75530510 | E75: -4672247848 | F75: 62929914152 | H75: 62929914152 | I75: 82927000 | J75: 25862068278 | K75: 0.4109662094 | L75: 470972095 | M75: 7972686795 | N75: 0.126691525
A76: 331030303010000 | B76: FONDO DE VIVIENDA | C76: 21832635000 | D76: -75530510 | E76: 943943397 | F76: 22776578397 | H76: 22776578397 | J76: 7000000000 | K76: 0.307333256 | M76: 7000000000 | N76: 0.307333256
A77: 331030303020000 | B77: PAGOS SERVICIOS MEDICOS CONVENCIONALES | C77: 45769527000 | E77: -5616191245 | F77: 40153335755 | H77: 40153335755 | I77: 82927000 | J77: 18862068278 | K77: 0.4697509665 | L77: 470972095 | M77: 972686795 | N77: 0.02422430856
A78: 331030400000000 | B78: OTRAS TRANSFERENCIAS | C78: 700000000 | E78: 256305761 | F78: 956305761 | H78: 956305761 | I78: 52302237 | J78: 167746696 | K78: 0.1754111528 | L78: 52302237 | M78: 167746696 | N78: 0.1754111528
A79: 331030401000000 | B79: DESTINATARIOS DE OTRAS TRANSFERENCIAS | C79: 700000000 | E79: 256305761 | F79: 956305761 | H79: 956305761 | I79: 52302237 | J79: 167746696 | K79: 0.1754111528 | L79: 52302237 | M79: 167746696 | N79: 0.1754111528
A80: 331040000000000 | B80: CUENTAS POR PAGAR | C80: 177693681000 | D80: -3524876439 | E80: 4387361327 | F80: 182081042327 | H80: 182081042327 | I80: -331933691 | J80: 181599147336 | K80: 0.9973534038 | L80: 10000027027 | M80: 121330648662 | N80: 0.6663551961
A81: 332000000000000 | B81: GASTOS DE OPERACION | C81: 257596808000 | E81: 28156618935 | F81: 285753426935 | H81: 285753426935 | I81: 4845561720 | J81: 179333310590 | K81: 0.6275806121 | L81: 11403408126 | M81: 96582544612 | N81: 0.3379926031
A82: 332010000000000 | B82: GASTOS DE COMERCIALIZACION | C82: 97177505000 | D82: 41713581 | E82: 317215197 | F82: 97494720197 | H82: 97494720197 | I82: 4958749278 | J82: 20843682466 | K82: 0.2137929359 | L82: 1780781107 | M82: 5156933271 | N82: 0.05289448763
A83: 332010100000000 | B83: COMPRA DE BIENES PARA LA VENTA | C83: 3037881000 | F83: 3037881000 | H83: 3037881000
A84: 332010101000000 | B84: MEDIDORES | C84: 3037881000 | F84: 3037881000 | H84: 3037881000
A85: 332010200000000 | B85: COMPRA DE SERVICIOS PARA LA VENTA | C85: 10866852000 | F85: 10866852000 | H85: 10866852000 | J85: 7177265159 | K85: 0.6604732593 | L85: 981110454 | M85: 2276594540 | N85: 0.209498992
A86: 332010201000000 | B86: GESTION COMERCIAL | C86: 10866852000 | F86: 10866852000 | H86: 10866852000 | J86: 7177265159 | K86: 0.6604732593 | L86: 981110454 | M86: 2276594540 | N86: 0.209498992
A87: 332010500000000 | B87: OTROS GASTOS DE COMERCIALIZACION | C87: 83272772000 | D87: 41713581 | E87: 317215197 | F87: 83589987197 | H87: 83589987197 | I87: 4958749278 | J87: 13666417307 | K87: 0.1634934729 | L87: 799670653 | M87: 2880338731 | N87: 0.03445793961
A88: 332010501000000 | B88: MANTENIMIENTO Y MATERIALES OPERACION INFRAESTRUCTURA | C88: 78122772000 | D88: -4657853359 | E88: -4663981000 | F88: 73458791000 | H88: 73458791000 | I88: 4958749278 | J88: 13666417307 | K88: 0.186041958 | L88: 799670653 | M88: 2880338731 | N88: 0.03921026594
A89: 332010502000000 | B89: COMERCIALIZACION DE ENERGIA | C89: 150000000 | F89: 150000000 | H89: 150000000
A90: 332010503000000 | B90: FONDO ATENCION EMERGENCIAS | C90: 4000000000 | D90: 4699566940 | E90: 4981196197 | F90: 8981196197 | H90: 8981196197
A91: 332010504000000 | B91: FONDO OBLIGACIONES CONTIGENTES | C91: 1000000000 | F91: 1000000000 | H91: 1000000000
A92: 332020000000000 | B92: GASTOS DE PRODUCCION | C92: 90897005000 | F92: 90897005000 | H92: 90897005000 | I92: 81872000 | J92: 62302444052 | K92: 0.6854180075 | L92: 4671860116 | M92: 32941373557 | N92: 0.3624032888
A93: 332020100000000 | B93: INDUSTRIAL | C93: 90897005000 | F93: 90897005000 | H93: 90897005000 | I93: 81872000 | J93: 62302444052 | K93: 0.6854180075 | L93: 4671860116 | M93: 32941373557 | N93: 0.3624032888
A94: 332020102000000 | B94: ENERGIA PARA BOMBEO | C94: 49926839000 | F94: 49926839000 | H94: 49926839000 | J94: 49115736921 | K94: 0.9837541872 | L94: 4177763642 | M94: 28118067464 | N94: 0.5631854134
A95: 332020103000000 | B95: TASA POR USO DE AGUA | C95: 11918982000 | F95: 11918982000 | H95: 11918982000 | J95: 3582064781 | K95: 0.3005344568 | M95: 3582064781 | N95: 0.3005344568
A96: 332020109000000 | B96: PRODUCTOS QUIMICOS | C96: 29051184000 | F96: 29051184000 | H96: 29051184000 | I96: 81872000 | J96: 9604642350 | K96: 0.3306110467 | L96: 494096474 | M96: 1241241312 | N96: 0.04272601461
A97: 332030000000000 | B97: CUENTAS POR PAGAR | C97: 69522298000 | D97: -41713581 | E97: 27839403738 | F97: 97361701738 | H97: 97361701738 | I97: -195059558 | J97: 96187184072 | K97: 0.9879365536 | L97: 4950766903 | M97: 58484237784 | N97: 0.6006903817
A98: 333000000000000 | B98: SERVICIO DE LA DEUDA | C98: 100538280000 | E98: 23105484120 | F98: 123643764120 | H98: 123643764120 | I98: 23455669120 | J98: 104824348273 | K98: 0.8477932471 | L98: 23455669120 | M98: 97653454415 | N98: 0.7897968418
A99: 333010000000000 | B99: DEUDA INTERNA | C99: 90538280000 | F99: 90538280000 | H99: 90538280000 | J99: 81106799040 | K99: 0.8958288035 | M99: 73935905182 | N99: 0.8166259088
A100: 333010100000000 | B100: AMORTIZACION | C100: 74444445000 | F100: 74444445000 | H100: 74444445000 | J100: 74444445000 | K100: 1 | M100: 70000000000 | N100: 0.9402985004
A101: 333010200000000 | B101: INTERESES | C101: 16073885000 | F101: 16073885000 | H101: 16073885000 | J101: 6643354500 | K101: 0.4133011092 | M101: 3935905182 | N101: 0.2448633409
A102: 333010300000000 | B102: COMISIONES Y OTROS | C102: 19950000 | F102: 19950000 | H102: 19950000 | J102: 18999540 | K102: 0.9523578947
A103: 333030000000000 | B103: BONOS PENSIONALES | C103: 10000000000 | F103: 10000000000 | H103: 10000000000 | I103: 350185000 | J103: 612065113 | K103: 0.0612065113 | L103: 350185000 | M103: 612065113 | N103: 0.0612065113
A104: 333050000000000 | B104: PASIVOS CONTINGENTES | E104: 23105484120 | F104: 23105484120 | H104: 23105484120 | I104: 23105484120 | J104: 23105484120 | K104: 1 | L104: 23105484120 | M104: 23105484120 | N104: 1
A105: 334000000000000 | B105: INVERSION | C105: 3280728525000 | E105: -136760665179 | F105: 3143967859821 | H105: 3143967859821 | I105: 30097976761 | J105: 2080063317839 | K105: 0.6616045108 | L105: 45406436181 | M105: 272172547469 | N105: 0.0865697614
A106: 334010000000000 | B106: DIRECTA | C106: 1740814677000 | D106: -298352620491 | E106: -272819725464 | F106: 1467994951536 | H106: 1467994951536 | I106: 10872853996 | J106: 919496591943 | K106: 0.6263622303 | L106: 4558634167 | M106: 42607273308 | N106: 0.02902412795
A107: 334011500000000 | B107: BOGOTA MEJOR PARA TODOS | C107: 1740814677000 | E107: -832190939053 | F107: 908623737947 | H107: 908623737947 | J107: 908623737947 | K107: 1 | L107: 4539103117 | M107: 42587742258 | N107: 0.04687060274
A108: 334011502000000 | B108: PILAR DEMOCRACIA URBANA | C108: 1527980398000 | E108: -684182715292 | F108: 843797682708 | H108: 843797682708 | J108: 843797682708 | K108: 1 | L108: 3321047086 | M108: 27088551284 | N108: 0.03210313543
A109: 334011502130000 | B109: INFRAESTRUCTURA PARA EL DESARROLLO DEL HABITAT | C109: 1527980398000 | E109: -684182715292 | F109: 843797682708 | H109: 843797682708 | J109: 843797682708 | K109: 1 | L109: 3321047086 | M109: 27088551284 | N109: 0.03210313543
A110: 334011502130133 | B110: INFRAESTRUCTURA PARA EL DESARROLLO DEL HABITAT | C110: 1527980398000 | E110: -684182715292 | F110: 843797682708 | H110: 843797682708 | J110: 843797682708 | K110: 1 | L110: 3321047086 | M110: 27088551284 | N110: 0.03210313543
A111: 334011502130133000019 | B111: 0019 - CONSTRUCCIÓN DE REDES LOCALES PARA EL SERVICIO DE ALC | C111: 29559352000 | E111: -14150233546 | F111: 15409118454 | H111: 15409118454 | J111: 15409118454 | K111: 1 | L111: 18247259 | M111: 2263005393 | N111: 0.1468614444
A112: 334011502130133000020 | B112: 0020 - CONSTRUCCIÓN DE REDES LOCALES PARA EL SERVICIO DE ALC | C112: 30878351000 | E112: -12894440352 | F112: 17983910648 | H112: 17983910648 | J112: 17983910648 | K112: 1 | M112: 2141455597 | N112: 0.119076192
A113: 334011502130133000021 | B113: 0021 - CONSTRUCCIÓN DEL SISTEMA TRONCAL Y SECUNDARIO DE ALCA | C113: 9912330000 | E113: -9906856073 | F113: 5473927 | H113: 5473927 | J113: 5473927 | K113: 1 | M113: 5473927 | N113: 1
A114: 334011502130133000022 | B114: 0022 - CONSTRUCCIÓN DEL SISTEMA TRONCAL Y SECUNDARIO DE ALCA | E114: 971698303 | F114: 971698303 | H114: 971698303 | J114: 971698303 | K114: 1 | L114: 600367214 | M114: 971698303 | N114: 1
A115: 334011502130133000050 | B115: 0050 - RENOVACIÓN, REHABILITACIÓN O REPOSICIÓN DE LOS SISTEM | C115: 384197759000 | E115: -138314111004 | F115: 245883647996 | H115: 245883647996 | J115: 245883647996 | K115: 1 | L115: 542788533 | M115: 1317334887 | N115: 0.005357553858
A116: 334011502130133000051 | B116: 0051 - RENOVACIÓN, REHABILITACIÓN O REPOSICIÓN DEL SISTEMA T | C116: 191033782000 | E116: -106011923308 | F116: 85021858692 | H116: 85021858692 | J116: 85021858692 | K116: 1 | M116: 9964002675 | N116: 0.1171934233
A117: 334011502130133000052 | B117: 0052 - RENOVACIÓN, REHABILITACIÓN O REPOSICIÓN DEL SISTEMA T | C117: 94953962000 | E117: -51848784401 | F117: 43105177599 | H117: 43105177599 | J117: 43105177599 | K117: 1 | M117: 4948456259 | N117: 0.1147995794
A118: 334011502130133000053 | B118: 0053 - RENOVACIÓN, REHABILITACIÓN O REPOSICIÓN DEL SISTEMA T | C118: 27457018000 | E118: -25477784163 | F118: 1979233837 | H118: 1979233837 | J118: 1979233837 | K118: 1 | M118: 1408817245 | N118: 0.7117992926
A119: 334011502130133000054 | B119: 0054 - ACCIONES PARA EL SANEAMIENTO DEL RÍO BOGOTÁ | C119: 199958252000 | E119: -597474924 | F119: 199360777076 | H119: 199360777076 | J119: 199360777076 | K119: 1 | L119: 1514606475 | M119: 1514606475 | N119: 0.007597314262
A120: 334011502130133000068 | B120: 0068 - CONSTRUCCIÓN, RENOVACIÓN, REHABILITACIÓN O REPOSICIÓN | C120: 133991235000 | E120: -36875880127 | F120: 97115354873 | H120: 97115354873 | J120: 97115354873 | K120: 1 | L120: 38643768 | M120: 147916404 | N120: 0.001523100072
A121: 334011502130133000081 | B121: 0081 - CORREDORES AMBIENTALES | C121: 335819610000 | E121: -240009163787 | F121: 95810446213 | H121: 95810446213 | J121: 95810446213 | K121: 1 | L121: 114364800 | M121: 1430473860 | N121: 0.01493024943
A122: 334011502130133007334 | B122: 7334 - CONSTRUCCIÓN Y EXPANSIÓN DEL SISTEMA DE ABASTECIMIENT | C122: 76238903000 | E122: -41528652705 | F122: 34710250295 | H122: 34710250295 | J122: 34710250295 | K122: 1 | L122: 492029037 | M122: 700429156 | N122: 0.02017931735
A123: 334011502130133007338 | B123: 7338 - CONSTRUCCIÓN DE REDES LOCALES PARA EL SERVICIO DE ACU | C123: 13979844000 | E123: -7539109205 | F123: 6440734795 | H123: 6440734795 | J123: 6440734795 | K123: 1 | M123: 274881103 | N123: 0.04267853153
A124: 334011506000000 | B124: EJE TRANSV. SOSTENIB. AMBIENTAL BASADA EFICIENCIA ENERGETICA | C124: 65123144000 | E124: -387645993 | F124: 64735498007 | H124: 64735498007 | J124: 64735498007 | K124: 1 | L124: 1211195631 | M124: 15492330574 | N124: 0.2393173923
A125: 334011506380000 | B125: RECUPERACION Y MANEJO ESTRUCTURA ECOLOGICA PRINCIPAL | C125: 11219688000 | E125: 11266685341 | F125: 22486373341 | H125: 22486373341 | J125: 22486373341 | K125: 1 | L125: 40029363 | M125: 9175805137 | N125: 0.4080606952
A126: 334011506380177 | B126: CONSOLIDACION DE LA ESTRUCTURA ECOLOGICA PRINCIPAL | C126: 11219688000 | E126: 11266685341 | F126: 22486373341 | H126: 22486373341 | J126: 22486373341 | K126: 1 | L126: 40029363 | M126: 9175805137 | N126: 0.4080606952
A127: 334011506380177007341 | B127: 7341 - ADEC.HIDRAULICA RECUP.AMB.HUMED,QUEBRADAS,RIOS CUENCA | C127: 11219688000 | E127: 11266685341 | F127: 22486373341 | H127: 22486373341 | J127: 22486373341 | K127: 1 | L127: 40029363 | M127: 9175805137 | N127: 0.4080606952
A128: 334011506390000 | B128: AMBIENTE SANO PARA LA EQUIDAD Y DISFRUTE DEL CIUDADANO | C128: 53903456000 | E128: -11654331334 | F128: 42249124666 | H128: 42249124666 | J128: 42249124666 | K128: 1 | L128: 1171166268 | M128: 6316525437 | N128: 0.1495066581
A129: 334011506390179 | B129: AMBIENTE SANO | C129: 53903456000 | E129: -11654331334 | F129: 42249124666 | H129: 42249124666 | J129: 42249124666 | K129: 1 | L129: 1171166268 | M129: 6316525437 | N129: 0.1495066581
A130: 334011506390179000082 | B130: 0082 - PLAN DE SANEAMIENTO Y MANEJO DE VERTIMIENTOS | C130: 53903456000 | E130: -11654331334 | F130: 42249124666 | H130: 42249124666 | J130: 42249124666 | K130: 1 | L130: 1171166268 | M130: 6316525437 | N130: 0.1495066581
A131: 334011507000000 | B131: EJE TRANSVERSAL GOBIERNO LEGITIMO, FORT. LOCAL Y EFICIENTE | C131: 147711135000 | E131: -147620577768 | F131: 90557232 | H131: 90557232 | J131: 90557232 | K131: 1 | L131: 6860400 | M131: 6860400 | N131: 0.07575761591
A132: 334011507420000 | B132: TRANSPARENCIA, GESTION PUBLICA Y SERVICIO A LA CIUDADANIA | C132: 147711135000 | E132: -147620577768 | F132: 90557232 | H132: 90557232 | J132: 90557232 | K132: 1 | L132: 6860400 | M132: 6860400 | N132: 0.07575761591
A133: 334011507420185 | B133: FORTALECIMIENTO A LA GESTION PUBLICA EFECTIVA Y EFICIENTE | C133: 147711135000 | E133: -147620577768 | F133: 90557232 | H133: 90557232 | J133: 90557232 | K133: 1 | L133: 6860400 | M133: 6860400 | N133: 0.07575761591
A134: 334011507420185000055 | B134: 0055 - FORTALECIMIENTO ADMINISTRATIVO Y OPERATIVO EMPRESARIA | C134: 147711135000 | E134: -147620577768 | F134: 90557232 | H134: 90557232 | J134: 90557232 | K134: 1 | L134: 6860400 | M134: 6860400 | N134: 0.07575761591
A135: 334334011600000000011600000000 | B135: UN NUEVO CONTRATO SOCIAL Y AMBIENTAL BOGOTÁ DEL SIGLO XXI | D135: -298352620491 | E135: 559371213589 | F135: 559371213589 | H135: 559371213589 | I135: 10872853996 | J135: 10872853996 | K135: 0.01943763592 | L135: 19531050 | M135: 19531050 | N135: 3.491607992e-05
A136: 334011602000000 | B136: CAMBIAR HÁBITOS DE VIDA ADAPTARNOS Y MITIGAR CRISIS CLIMATIC | D136: -292325355291 | E136: 402517049774 | F136: 402517049774 | H136: 402517049774 | I136: 10872853996 | J136: 10872853996 | K136: 0.02701215763 | L136: 19531050 | M136: 19531050 | N136: 4.852229244e-05
A137: 334011602060000 | B137: RESTAURACIÓN, PRESERVACIÓN Y MANTENIMIENTO AMBIENTE NATURAL | D137: -256679894406 | E137: 193418710386 | F137: 193418710386 | H137: 193418710386 | I137: 9147091674 | J137: 9147091674 | K137: 0.04729165889
A138: 334011602062800 | B138: BOGOTÁ PROTECTORA DE SUS RECURSOS NATURALES | D138: -197623727759 | E138: 54640083079 | F138: 54640083079 | H138: 54640083079 | I138: 431188796 | J138: 431188796 | K138: 0.007891437416
A139: 334011602062800147341 | B139: 7341 -ADECUACIÓN HIDRÁULICA Y RECUPERACIÓN AMBIENTAL DE HUME | E139: 13288516258 | F139: 13288516258 | H139: 13288516258 | I139: 242118000 | J139: 242118000 | K139: 0.01822009285
A140: 334011602062800140081 | B140: 0081 - CONSTRUCCIÓN DE CORREDORES AMBIENTALES EN EL ÁREA DE | D140: -197623727759 | E140: 41351566821 | F140: 41351566821 | H140: 41351566821 | I140: 189070796 | J140: 189070796 | K140: 0.004572276471
A141: 334011602063600 | B141: MANEJO Y SANEAMIENTO DE LOS CUERPOS DE AGUA | D141: -59056166647 | E141: 138778627307 | F141: 138778627307 | H141: 138778627307 | I141: 8715902878 | J141: 8715902878 | K141: 0.06280436006
A142: 334011602063600190051 | B142: 0051 - RENOVACIÓN Y/O REPOSICIÓN DEL SISTEMA TRONCAL, SECUND | D142: -42330928149 | E142: 57949623051 | F142: 57949623051 | H142: 57949623051 | I142: 6771274804 | J142: 6771274804 | K142: 0.1168476074
A143: 334011602063600190052 | B143: 0052 - RENOVACIÓN Y/O REPOSICIÓN DEL SISTEMA TRONCAL, SECUND | D143: -17024734206 | E143: 36755736192 | F143: 36755736192 | H143: 36755736192 | I143: 1944628074 | J143: 1944628074 | K143: 0.05290679158
A144: 334011602063600190053 | B144: 0053 - RENOVACIÓN Y/O REPOSICIÓN DEL SISTEMA TRONCAL, SECUND | E144: 27292703329 | F144: 27292703329 | H144: 27292703329
A145: 334011602063600190082 | B145: 0082 - DESARROLLO DEL PLAN DE SANEAMIENTO Y MANEJO DE VERTIM | D145: 299495708 | E145: 16780564735 | F145: 16780564735 | H145: 16780564735
A146: 334011602070000 | B146: CUIDADO Y MANTENIMIENTO DEL AMBIENTE CONSTRUIDO | D146: -35645460885 | E146: 209098339388 | F146: 209098339388 | H146: 209098339388 | I146: 1725762322 | J146: 1725762322 | K146: 0.008253352595 | L146: 19531050 | M146: 19531050 | N146: 9.340605027e-05
A147: 334011602073700 | B147: PROVISIÓN Y MEJORAMIENTO DE SERVICIOS PÚBLICOS | D147: -35645460885 | E147: 209098339388 | F147: 209098339388 | H147: 209098339388 | I147: 1725762322 | J147: 1725762322 | K147: 0.008253352595 | L147: 19531050 | M147: 19531050 | N147: 9.340605027e-05
A148: 334011602073700190019 | B148: 0019 - CONSTRUCCIÓN DE REDES LOCALES PARA SERVICIO DE ALCANT | D148: -9517507488 | E148: 5376019094 | F148: 5376019094 | H148: 5376019094 | I148: 19951640 | J148: 19951640 | K148: 0.003711229378
A149: 334011602073700190020 | B149: 0020 - CONSTRUCCIÓN DE REDES LOCALES PARA EL SERVICIO DE ALC | D149: 174918318 | E149: 11648615347 | F149: 11648615347 | H149: 11648615347
A150: 334011602073700190021 | B150: 0021 -CONSTRUCCIÓN DEL SISTEMA TRONCAL Y SECUNDARIO DE ALCAN | D150: -299495708 | E150: 6938554368 | F150: 6938554368 | H150: 6938554368
A151: 334011602073700190022 | B151: 0022 - CONSTRUCCIÓN DEL SISTEMA TRONCAL Y SECUNDARIO DE ALCA | D151: 18000 | E151: 2601180493 | F151: 2601180493 | H151: 2601180493 | I151: 19531050 | J151: 19531050 | K151: 0.007508533165 | L151: 19531050 | M151: 19531050 | N151: 0.007508533165
A152: 334011602073700190050 | B152: 0050 - RENOVACIÓN Y/O REPOSICIÓN DE LOS SISTEMAS DE ABASTECI | D152: -6290895881 | E152: 108090866020 | F152: 108090866020 | H152: 108090866020 | I152: 888241354 | J152: 888241354 | K152: 0.008217543135
A153: 334011602073700190054 | B153: 0054 - DESARROLLO DE ACCIONES PARA EL SANEAMIENTO DEL RÍO BO | E153: 211824080 | F153: 211824080 | H153: 211824080
A154: 334011602073700190068 | B154: 0068 - ADECUACIÓN DE LAS REDES ASOCIADAS A LA INFRAESTRUCTUR | D154: -20541115880 | E154: 25459825613 | F154: 25459825613 | H154: 25459825613
A155: 334011602073700197334 | B155: 7334 - CONSTRUCCIÓN Y EXPANSIÓN DEL SISTEMA DE ABASTECIMIENT | D155: 800735456 | E155: 39539011160 | F155: 39539011160 | H155: 39539011160 | I155: 798038278 | J155: 798038278 | K155: 0.02018356693
A156: 334011602073700197338 | B156: 7338 - CONSTRUCCIÓN DE REDES LOCALES PARA EL SERVICIO DE ACU | D156: 27882298 | E156: 9232443213 | F156: 9232443213 | H156: 9232443213
A157: 334011605000000 | B157: CONSTRUIR BOGOTÁ - REGIÓN GOB. ABIERTO, TRANS Y CIUD CONSCIE | D157: -6027265200 | E157: 156854163815 | F157: 156854163815 | H157: 156854163815
A158: 334011605170000 | B158: INTEGRACIÓN REGIONAL | D158: -6027265200 | E158: 156854163815 | F158: 156854163815 | H158: 156854163815
A159: 334011605175200 | B159: INTEGRACIÓN REGIONAL, DISTRITAL Y LOCAL | D159: -6027265200 | E159: 156854163815 | F159: 156854163815 | H159: 156854163815
A160: 334011605175200300055 | B160: 0055 -DESARROLLO DE ACCIONES PARA EL FORTALECIMIENTO ADMINIS | D160: -6027265200 | E160: 156854163815 | F160: 156854163815 | H160: 156854163815
A161: 334020000000000 | B161: TRANSFERENCIAS PARA INVERSION | C161: 295508851000 | D161: 301395179722 | E161: 245055941692 | F161: 540564792692 | H161: 540564792692 | I161: 23612326406 | J161: 28612326406 | K161: 0.05293042905 | L161: 11783317231 | M161: 16783317231 | N161: 0.03104774387
A162: 334020200000000 | B162: EMPRESAS DISTRITALES | C162: 295508851000 | D162: 301395179722 | E162: 245055941692 | F162: 540564792692 | H162: 540564792692 | I162: 23612326406 | J162: 28612326406 | K162: 0.05293042905 | L162: 11783317231 | M162: 16783317231 | N162: 0.03104774387
A163: 334030000000000 | B163: CUENTAS POR PAGAR | C163: 1244404997000 | D163: -3042559231 | E163: -108996881407 | F163: 1135408115593 | H163: 1135408115593 | I163: -4387203641 | J163: 1131954399490 | K163: 0.9969581721 | L163: 29064484783 | M163: 212781956930 | N163: 0.1874057037
A164: 340000000000000 | B164: DISPONIBILIDAD FINAL | C164: 677122058000 | E164: 115754975302 | F164: 792877033302 | H164: 792877033302
B169: JULIANA CASTRO BUITRAGO | F169: DIANA GISELA PARRA CORREA
B170: Directora Presupuesto | F170: Gerente Corporativa Financiera

Sheet Graph (hidden)
G1: FEP8Qry3
F2: Dir. SIE - BI Rev 2014.01
F5: Information
F6: Autor | G6: RAGARCIA | I6: Últ.actual.pantalla | J6: 02/07/2014 09:16:31
F7: Usuario actual | G7: AOCAMPOR | I7: Fe.clave | J7: 02/07/2014
F8: Modificado por | G8: RAGARCIA | I8: Hora de modificación | J8: 12/06/2014 15:20:31
F9: InfoSitio | G9: 0PU_C02 | I9: Actualidad de datos | J9: 02/07/2014 00:39:33
F10: Nombre técnico query | G10: ZPU_C02_Q4001 | I10: Actualidad de datos (fecha) | J10: 02/07/2014
F11: Descripción query | G11: EJECUCION PRESUPUESTAL DE GASTOS - SECRETARIA DE HACIENDA | I11: Actualidad de los datos (hora) | J11: 00:39:33
C14: Filter
C15: Cta Entidades PSM | D15: GASTOS, DISPONIBILIDAD FINAL
C16: Ratios

Sheet V_Futuras_2021-2023
A2: EMPRESA DE ACUEDUCTO ALCANTARILLADO DE BOGOTA | M2: EMPRESA DE ACUEDUCTO ALCANTARILLADO DE BOGOTA | Y2: EMPRESA DE ACUEDUCTO ALCANTARILLADO DE BOGOTA | AK2: EMPRESA DE ACUEDUCTO ALCANTARILLADO DE BOGOTA
A3: EJECUCION PRESUPUESTAL DE VIGENCIAS FUTURAS | M3: EJECUCION PRESUPUESTAL DE VIGENCIAS FUTURAS | Y3: EJECUCION PRESUPUESTAL DE VIGENCIAS FUTURAS | AK3: EJECUCION PRESUPUESTAL DE VIGENCIAS FUTURAS
A4: A 31 JULIO DE 2020 | M4: A 31 JULIO DE 2020 | Y4: A 31 JULIO DE 2020 | AK4: A 31 JULIO DE 2020
A6: 2021 | M6: 2022 | Q6: 2020 | Y6: 2023 | AK6: 2021-2023
A7: CODIGO SECRETARIA DE HACIENDA | B7: CONCEPTO | C7: PRESUPUESTO INICIAL | D7: MODIFICACIONES MES | E7: MODIFICACIONES ACUMULADAS | F7: PRESUPUESTO DEFINITIVO | G7: COMPROMISOS MES | H7: COMPROMISOS ACUMULADOS | I7: % EJEC PPTAL | J7: DISPONIBILIDADES MES | K7: DISPONIBILIDADES ACUMULADAS | L7: SALDO DISPONIBLE | M7: CODIGO SECRETARIA DE HACIENDA | N7: CONCEPTO | O7: PRESUPUESTO INICIAL | P7: MODIFICACIONES MES | Q7: MODIFICACIONES ACUMULADAS | R7: PRESUPUESTO DEFINITIVO | S7: COMPROMISOS MES | T7: COMPROMISOS ACUMULADOS | U7: % EJEC PPTAL | V7: DISPONIBILIDADES MES | W7: DISPONIBILIDADES ACUMULADAS | X7: SALDO DISPONIBLE | Y7: CODIGO SECRETARIA DE HACIENDA | Z7: CONCEPTO | AA7: PRESUPUESTO INICIAL | AB7: MODIFICACIONES MES | AC7: MODIFICACIONES ACUMULADAS | AD7: PRESUPUESTO DEFINITIVO | AE7: COMPROMISOS MES | AF7: COMPROMISOS ACUMULADOS | AG7: % EJEC PPTAL | AH7: DISPONIBILIDADES MES | AI7: DISPONIBILIDADES ACUMULADAS | AJ7: SALDO DISPONIBLE | AK7: CODIGO SECRETARIA DE HACIENDA | AL7: CONCEPTO | AM7: Presupuesto Inicial VF Total | AN7: Modificaciones mes VF Total | AO7: Modificaciones Acumuladas VF Total | AP7: Presupuesto Definitivo VF Total | AQ7: Compromisos mes Total | AR7: Compromisos Acumulados Total | AS7: % EJEC PPTAL | AT7: Disponibilidades mes Total | AU7: Disponibilidades Acumuladas Total | AV7: Saldo Disponible Total
A8: 330000000000000 | B8: GASTOS | C8: =C9+C17 -> 382346750258 | D8: =D9+D17 -> 0 | E8: 72949819971 | F8: 455296570229 | G8: 0 | H8: 378368106509 | I8: =H8/F8 -> 0.8310365842 | J8: =J9+J17 -> 212412972 | K8: =K9+K17 -> 35902141664 | L8: =L9+L17 -> 41026322056 | M8: 330000000000000 | N8: GASTOS | O8: =O9+O17 -> 39259233760 | P8: =P9+P17 -> 0 | Q8: =Q9+Q17 -> 58056449321 | R8: =R9+R17 -> 97315683081 | S8: =S9+S17 -> 0 | T8: =T9+T17 -> 39259233760 | U8: =T8/R8 -> 0.4034214478 | V8: =V9+V17 -> 51377465 | W8: =W9+W17 -> 27698108357 | X8: =X9+X17 -> 30358340964 | Y8: 330000000000000 | Z8: GASTOS | AA8: =AA9+AA17 -> 0 | AB8: =AB9+AB17 -> 0 | AC8: =AC9+AC17 -> 1062015124 | AD8: =AD9+AD17 -> 1062015124 | AE8: =AE9+AE17 -> 0 | AF8: =AF9+AF17 -> 0 | AG8: =AF8/AD8 -> 0 | AH8: =AH9+AH17 -> 0 | AI8: =AI9+AI17 -> 1062015124 | AJ8: =AJ9+AJ17 -> 0 | AK8: 330000000000000 | AL8: GASTOS | AM8: =AM9+AM17 -> 421605984018 | AN8: =AN9+AN17 -> 0 | AO8: =AO9+AO17 -> 132068284416 | AP8: =AP9+AP17 -> 553674268434 | AQ8: =AQ9+AQ17 -> 0 | AR8: =AR9+AR17 -> 417627340269 | AS8: =AR8/AP8 -> 0.7542834552 | AT8: =AT9+AT17 -> 263790437 | AU8: =AU9+AU17 -> 64662265145 | AV8: =AV9+AV17 -> 71384663020
A9: 331000000000000 | B9: GASTOS DE FUNCIONAMIENTO | C9: =C10+C13 -> 0 | D9: =D10+D13 -> 0 | E9: 67004089941 | F9: 67004089941 | G9: 0 | H9: 0 | I9: =H9/F9 -> 0 | J9: =J10+J13 -> 0 | K9: =K10+K13 -> 30574080784 | L9: =L10+L13 -> 36430009157 | M9: 331000000000000 | N9: GASTOS DE FUNCIONAMIENTO | O9: =O10+O13 -> 0 | P9: =P10+P13 -> 0 | Q9: =Q10+Q13 -> 55458049988 | R9: =R10+R13 -> 55458049988 | S9: =S10+S13 -> 0 | T9: =T10+T13 -> 0 | U9: =T9/R9 -> 0 | V9: =V10+V13 -> 0 | W9: =W10+W13 -> 25099709024 | X9: =X10+X13 -> 30358340964 | Y9: 331000000000000 | Z9: GASTOS DE FUNCIONAMIENTO | AA9: =AA10+AA13 -> 0 | AB9: =AB10+AB13 -> 0 | AC9: =AC10+AC13 -> 425259656 | AD9: =AD10+AD13 -> 425259656 | AE9: =AE10+AE13 -> 0 | AF9: =AF10+AF13 -> 0 | AG9: =AF9/AD9 -> 0 | AH9: =AH10+AH13 -> 0 | AI9: =AI10+AI13 -> 425259656 | AJ9: 0 | AK9: 331000000000000 | AL9: GASTOS DE FUNCIONAMIENTO | AM9: =AM10+AM13 -> 0 | AN9: =AN10+AN13 -> 0 | AO9: =AO10+AO13 -> 122887399585 | AP9: =AP10+AP13 -> 122887399585 | AQ9: =AQ10+AQ13 -> 0 | AR9: =AR10+AR13 -> 0 | AS9: =AR9/AP9 -> 0 | AT9: =AT10+AT13 -> 0 | AU9: =AU10+AU13 -> 56099049464 | AV9: =AV10+AV13 -> 66788350121
A10: 331010000000000 | B10: SERVICIOS PERSONALES | C10: =C11 -> 0 | D10: =D11 -> 0 | E10: 757531087 | F10: 757531087 | G10: 0 | H10: 0 | I10: 0 | J10: =J11 -> 0 | K10: =K11 -> 757531087 | L10: =L11 -> 0 | M10: 331010000000000 | N10: SERVICIOS PERSONALES | O10: =O11 -> 0 | P10: =P11 -> 0 | Q10: =Q11 -> 741576800 | R10: =R11 -> 741576800 | S10: =S11 -> 0 | T10: =T11 -> 0 | U10: 0 | V10: =V11 -> 0 | W10: =W11 -> 741576800 | X10: =X11 -> 0 | Y10: 331010000000000 | Z10: SERVICIOS PERSONALES | AA10: =AA11 -> 0 | AB10: =AB11 -> 0 | AC10: =AC11 -> 425259656 | AD10: =AD11 -> 425259656 | AE10: =AE11 -> 0 | AF10: =AF11 -> 0 | AG10: 0 | AH10: =AH11 -> 0 | AI10: =AI11 -> 425259656 | AJ10: 0 | AK10: 331010000000000 | AL10: SERVICIOS PERSONALES | AM10: =AM11 -> 0 | AN10: =AN11 -> 0 | AO10: =AO11 -> 1924367543 | AP10: =AP11 -> 1924367543 | AQ10: =AQ11 -> 0 | AR10: =AR11 -> 0 | AS10: 0 | AT10: =AT11 -> 0 | AU10: =AU11 -> 1924367543 | AV10: =AV11 -> 0
A11: 331010200000000 | B11: SERVICIOS PERSONALES INDIRECTOS | C11: =C12 -> 0 | D11: 0 | E11: 757531087 | F11: 757531087 | G11: 0 | H11: 0 | I11: 0 | J11: 0 | K11: 757531087 | L11: 0 | M11: 331010200000000 | N11: SERVICIOS PERSONALES INDIRECTOS | O11: =O12 -> 0 | P11: 0 | Q11: 741576800 | R11: 741576800 | S11: 0 | T11: 0 | U11: 0 | V11: 0 | W11: 741576800 | X11: 0 | Y11: 331010200000000 | Z11: SERVICIOS PERSONALES INDIRECTOS | AA11: =AA12 -> 0 | AB11: 0 | AC11: 425259656 | AD11: 425259656 | AE11: 0 | AF11: 0 | AG11: 0 | AH11: 0 | AI11: 425259656 | AJ11: 0 | AK11: 331010200000000 | AL11: SERVICIOS PERSONALES INDIRECTOS | AM11: =AM12 -> 0 | AN11: 0 | AO11: 1924367543 | AP11: 1924367543 | AQ11: 0 | AR11: 0 | AS11: 0 | AT11: 0 | AU11: 1924367543 | AV11: 0
A12: 331010203000000 | B12: HONORARIOS EMPRESA | C12: 0 | D12: 0 | E12: 757531087 | F12: 757531087 | G12: 0 | H12: 0 | I12: 0 | J12: 0 | K12: 757531087 | L12: 0 | M12: 331010203000000 | N12: HONORARIOS EMPRESA | O12: 0 | P12: 0 | Q12: 741576800 | R12: 741576800 | S12: 0 | T12: 0 | U12: 0 | V12: 0 | W12: 741576800 | X12: 0 | Y12: 331010203000000 | Z12: HONORARIOS EMPRESA | AA12: 0 | AB12: 0 | AC12: 425259656 | AD12: 425259656 | AE12: 0 | AF12: 0 | AG12: 0 | AH12: 0 | AI12: 425259656 | AJ12: 0 | AK12: 331010203000000 | AL12: HONORARIOS EMPRESA | AM12: 0 | AN12: 0 | AO12: 1924367543 | AP12: 1924367543 | AQ12: 0 | AR12: 0 | AS12: 0 | AT12: 0 | AU12: 1924367543 | AV12: 0
A13: 331020000000000 | B13: GASTOS GENERALES | C13: =C14 -> 0 | D13: =D14 -> 0 | E13: 66246558854 | F13: 66246558854 | G13: 0 | H13: 0 | I13: 0 | J13: =J14 -> 0 | K13: =K14 -> 29816549697 | L13: =L14 -> 36430009157 | M13: 331020000000000 | N13: GASTOS GENERALES | O13: =O14 -> 0 | P13: =P14 -> 0 | Q13: =Q14 -> 54716473188 | R13: =R14 -> 54716473188 | S13: =S14 -> 0 | T13: =T14 -> 0 | U13: 0 | V13: =V14 -> 0 | W13: =W14 -> 24358132224 | X13: =X14 -> 30358340964 | Y13: 331020000000000 | Z13: GASTOS GENERALES | AA13: =AA14 -> 0 | AB13: =AB14 -> 0 | AC13: =AC14 -> 0 | AD13: =AD14 -> 0 | AE13: =AE14 -> 0 | AF13: =AF14 -> 0 | AG13: 0 | AH13: =AH14 -> 0 | AI13: =AI14 -> 0 | AJ13: 0 | AK13: 331020000000000 | AL13: GASTOS GENERALES | AM13: =AM14 -> 0 | AN13: =AN14 -> 0 | AO13: =AO14 -> 120963032042 | AP13: =AP14 -> 120963032042 | AQ13: =AQ14 -> 0 | AR13: =AR14 -> 0 | AS13: 0 | AT13: =AT14 -> 0 | AU13: =AU14 -> 54174681921 | AV13: =AV14 -> 66788350121
A14: 331020200000000 | B14: ADQUISICION DE SERVICIOS | C14: =C15+C16 -> 0 | D14: =D15+D16 -> 0 | E14: 66246558854 | F14: 66246558854 | G14: 0 | H14: 0 | I14: 0 | J14: =J15+J16 -> 0 | K14: =K15+K16 -> 29816549697 | L14: =L15+L16 -> 36430009157 | M14: 331020200000000 | N14: ADQUISICION DE SERVICIOS | O14: =O15+O16 -> 0 | P14: =P15+P16 -> 0 | Q14: =Q15+Q16 -> 54716473188 | R14: =R15+R16 -> 54716473188 | S14: =S15+S16 -> 0 | T14: =T15+T16 -> 0 | U14: 0 | V14: =V15+V16 -> 0 | W14: =W15+W16 -> 24358132224 | X14: =X15+X16 -> 30358340964 | Y14: 331020200000000 | Z14: ADQUISICION DE SERVICIOS | AA14: =AA15+AA16 -> 0 | AB14: =AB15+AB16 -> 0 | AC14: =AC15+AC16 -> 0 | AD14: =AD15+AD16 -> 0 | AE14: =AE15+AE16 -> 0 | AF14: =AF15+AF16 -> 0 | AG14: 0 | AH14: =AH15+AH16 -> 0 | AI14: =AI15+AI16 -> 0 | AJ14: 0 | AK14: 331020200000000 | AL14: ADQUISICION DE SERVICIOS | AM14: =AM15+AM16 -> 0 | AN14: =AN15+AN16 -> 0 | AO14: =AO15+AO16 -> 120963032042 | AP14: =AP15+AP16 -> 120963032042 | AQ14: =AQ15+AQ16 -> 0 | AR14: =AR15+AR16 -> 0 | AS14: 0 | AT14: =AT15+AT16 -> 0 | AU14: =AU15+AU16 -> 54174681921 | AV14: =AV15+AV16 -> 66788350121
A15: 331020204000000 | B15: MANTENIMIENTO Y REPARACIONES | C15: 0 | D15: 0 | E15: 29816549697 | F15: 29816549697 | G15: 0 | H15: 0 | I15: 0 | J15: 0 | K15: 29816549697 | L15: 0 | M15: 331020204000000 | N15: MANTENIMIENTO Y REPARACIONES | O15: 0 | P15: 0 | Q15: 24358132224 | R15: 24358132224 | S15: 0 | T15: 0 | U15: 0 | V15: 0 | W15: 24358132224 | X15: 0 | Y15: 331020204000000 | Z15: MANTENIMIENTO Y REPARACIONES | AA15: 0 | AB15: 0 | AC15: 0 | AD15: 0 | AE15: 0 | AF15: 0 | AG15: 0 | AH15: 0 | AI15: 0 | AJ15: 0 | AK15: 331020204000000 | AL15: MANTENIMIENTO Y REPARACIONES | AM15: 0 | AN15: 0 | AO15: 54174681921 | AP15: 54174681921 | AQ15: 0 | AR15: 0 | AS15: 0 | AT15: 0 | AU15: 54174681921 | AV15: 0
A16: 331020206000000 | B16: SEGUROS | C16: 0 | D16: 0 | E16: 36430009157 | F16: 36430009157 | G16: 0 | H16: 0 | I16: 0 | J16: 0 | K16: 0 | L16: 36430009157 | M16: 331020206000000 | N16: SEGUROS | O16: 0 | P16: 0 | Q16: 30358340964 | R16: 30358340964 | S16: 0 | T16: 0 | U16: 0 | V16: 0 | W16: 0 | X16: 30358340964 | Y16: 331020206000000 | Z16: SEGUROS | AA16: 0 | AB16: 0 | AC16: 0 | AD16: 0 | AE16: 0 | AF16: 0 | AG16: 0 | AH16: 0 | AI16: 0 | AJ16: 0 | AK16: 331020206000000 | AL16: SEGUROS | AM16: 0 | AN16: 0 | AO16: 66788350121 | AP16: 66788350121 | AQ16: 0 | AR16: 0 | AS16: 0 | AT16: 0 | AU16: 0 | AV16: 66788350121
A17: 334000000000000 | B17: INVERSION | C17: =C18 -> 382346750258 | D17: =D18 -> 0 | E17: 5945730030 | F17: 388292480288 | G17: 0 | H17: 378368106509 | I17: 0.9744409838 | J17: =J18 -> 212412972 | K17: 5328060880 | L17: 4596312899 | M17: 334000000000000 | N17: INVERSION | O17: =O18 -> 39259233760 | P17: =P18 -> 0 | Q17: =Q18 -> 2598399333 | R17: =R18 -> 41857633093 | S17: =S18 -> 0 | T17: =T18 -> 39259233760 | U17: 0.9379229273 | V17: =V18 -> 51377465 | W17: =W18 -> 2598399333 | X17: =X18 -> 0 | Y17: 334000000000000 | Z17: INVERSION | AA17: =AA18 -> 0 | AB17: =AB18 -> 0 | AC17: =AC18 -> 636755468 | AD17: =AD18 -> 636755468 | AE17: =AE18 -> 0 | AF17: =AF18 -> 0 | AG17: 0 | AH17: =AH18 -> 0 | AI17: =AI18 -> 636755468 | AJ17: 0 | AK17: 334000000000000 | AL17: INVERSION | AM17: =AM18 -> 421605984018 | AN17: =AN18 -> 0 | AO17: =AO18 -> 9180884831 | AP17: =AP18 -> 430786868849 | AQ17: =AQ18 -> 0 | AR17: =AR18 -> 417627340269 | AS17: 0.9694523452 | AT17: =AT18 -> 263790437 | AU17: =AU18 -> 8563215681 | AV17: =AV18 -> 4596312899
A18: 334010000000000 | B18: DIRECTA | C18: =C19+C39 -> 382346750258 | D18: =D19+D39 -> 0 | E18: 5945730030 | F18: 388292480288 | G18: 0 | H18: 378368106509 | I18: 0.9744409838 | J18: =J19+J39 -> 212412972 | K18: 5328060880 | L18: 4596312899 | M18: 334010000000000 | N18: DIRECTA | O18: =O19+O39 -> 39259233760 | P18: =P19+P39 -> 0 | Q18: =Q19+Q39 -> 2598399333 | R18: =R19+R39 -> 41857633093 | S18: =S19+S39 -> 0 | T18: =T19+T39 -> 39259233760 | U18: 0.9379229273 | V18: =V19+V39 -> 51377465 | W18: =W19+W39 -> 2598399333 | X18: =X19+X39 -> 0 | Y18: 334010000000000 | Z18: DIRECTA | AA18: =AA19+AA39 -> 0 | AB18: =AB19+AB39 -> 0 | AC18: =AC19+AC39 -> 636755468 | AD18: =AD19+AD39 -> 636755468 | AE18: =AE19+AE39 -> 0 | AF18: =AF19+AF39 -> 0 | AG18: 0 | AH18: =AH19+AH39 -> 0 | AI18: =AI19+AI39 -> 636755468 | AJ18: 0 | AK18: 334010000000000 | AL18: DIRECTA | AM18: =AM19+AM39 -> 421605984018 | AN18: =AN19+AN39 -> 0 | AO18: =AO19+AO39 -> 9180884831 | AP18: =AP19+AP39 -> 430786868849 | AQ18: =AQ19+AQ39 -> 0 | AR18: =AR19+AR39 -> 417627340269 | AS18: 0.9694523452 | AT18: =AT19+AT39 -> 263790437 | AU18: =AU19+AU39 -> 8563215681 | AV18: =AV19+AV39 -> 4596312899
A19: 334011500000000 | B19: BOGOTA MEJOR PARA TODOS | C19: =C20+C32 -> 382346750258 | D19: =D20+D32 -> 0 | E19: -382346750258 | F19: 0 | G19: 0 | H19: 0 | I19: 0 | J19: =J20+J32 -> 0 | K19: 0 | L19: 0 | M19: 334011500000000 | N19: BOGOTA MEJOR PARA TODOS | O19: =O20+O32 -> 39259233760 | P19: =P20+P32 -> 0 | Q19: =Q20+Q32 -> -39259233760 | R19: =R20+R32 -> 0 | S19: =S20+S32 -> 0 | T19: =T20+T32 -> 0 | U19: 0 | V19: =V20+V32 -> 0 | W19: =W20+W32 -> 0 | X19: =X20+X32 -> 0 | Y19: 334011500000000 | Z19: BOGOTA MEJOR PARA TODOS | AA19: =AA20+AA32 -> 0 | AB19: =AB20+AB32 -> 0 | AC19: =AC20+AC32 -> 0 | AD19: =AD20+AD32 -> 0 | AE19: =AE20+AE32 -> 0 | AF19: =AF20+AF32 -> 0 | AG19: 0 | AH19: =AH20+AH32 -> 0 | AI19: =AI20+AI32 -> 0 | AJ19: 0 | AK19: 334011500000000 | AL19: BOGOTA MEJOR PARA TODOS | AM19: =AM20+AM32 -> 421605984018 | AN19: =AN20+AN32 -> 0 | AO19: =AO20+AO32 -> -421605984018 | AP19: =AP20+AP32 -> 0 | AQ19: =AQ20+AQ32 -> 0 | AR19: =AR20+AR32 -> 0 | AS19: 0 | AT19: =AT20+AT32 -> 0 | AU19: =AU20+AU32 -> 0 | AV19: =AV20+AV32 -> 0
A20: 334011502000000 | B20: PILAR DEMOCRACIA URBANA | C20: =C21 -> 376659234239 | D20: =D21 -> 0 | E20: -376659234239 | F20: 0 | G20: 0 | H20: 0 | I20: 0 | J20: =J21 -> 0 | K20: 0 | L20: 0 | M20: 334011502000000 | N20: PILAR DEMOCRACIA URBANA | O20: =O21 -> 39259233760 | P20: =P21 -> 0 | Q20: =Q21 -> -39259233760 | R20: =R21 -> 0 | S20: =S21 -> 0 | T20: =T21 -> 0 | U20: 0 | V20: =V21 -> 0 | W20: =W21 -> 0 | X20: =X21 -> 0 | Y20: 334011502000000 | Z20: PILAR DEMOCRACIA URBANA | AA20: =AA21 -> 0 | AB20: =AB21 -> 0 | AC20: =AC21 -> 0 | AD20: =AD21 -> 0 | AE20: =AE21 -> 0 | AF20: =AF21 -> 0 | AG20: 0 | AH20: =AH21 -> 0 | AI20: =AI21 -> 0 | AJ20: 0 | AK20: 334011502000000 | AL20: PILAR DEMOCRACIA URBANA | AM20: =AM21 -> 415918467999 | AN20: =AN21 -> 0 | AO20: =AO21 -> -415918467999 | AP20: =AP21 -> 0 | AQ20: =AQ21 -> 0 | AR20: =AR21 -> 0 | AS20: 0 | AT20: =AT21 -> 0 | AU20: =AU21 -> 0 | AV20: =AV21 -> 0
A21: 334011502130000 | B21: INFRAESTRUCTURA PARA EL DESARROLLO DEL HABITAT | C21: =C22 -> 376659234239 | D21: 0 | E21: -376659234239 | F21: 0 | G21: 0 | H21: 0 | I21: 0 | J21: 0 | K21: 0 | L21: 0 | M21: 334011502130000 | N21: INFRAESTRUCTURA PARA EL DESARROLLO DEL HABITAT | O21: =O22 -> 39259233760 | P21: 0 | Q21: -39259233760 | R21: 0 | S21: 0 | T21: 0 | U21: 0 | V21: 0 | W21: 0 | X21: 0 | Y21: 334011502130000 | Z21: INFRAESTRUCTURA PARA EL DESARROLLO DEL HABITAT | AA21: =AA22 -> 0 | AB21: 0 | AC21: 0 | AD21: 0 | AE21: 0 | AF21: 0 | AG21: 0 | AH21: 0 | AI21: 0 | AJ21: 0 | AK21: 334011502130000 | AL21: INFRAESTRUCTURA PARA EL DESARROLLO DEL HABITAT | AM21: =AM22 -> 415918467999 | AN21: 0 | AO21: -415918467999 | AP21: 0 | AQ21: 0 | AR21: 0 | AS21: 0 | AT21: 0 | AU21: 0 | AV21: 0
A22: 334011502130133 | B22: INFRAESTRUCTURA PARA EL DESARROLLO DEL HABITAT | C22: =C23+C24+C25+C26+C27+C28+C29+C30+C31 -> 376659234239 | D22: =D23+D24+D25+D26+D27+D28+D29+D30+D31 -> 0 | E22: -376659234239 | F22: 0 | G22: 0 | H22: 0 | I22: 0 | J22: =J23+J24+J25+J26+J27+J28+J29+J30+J31 -> 0 | K22: 0 | L22: 0 | M22: 334011502130133 | N22: INFRAESTRUCTURA PARA EL DESARROLLO DEL HABITAT | O22: =O23+O24+O25+O26+O27+O28+O29+O30+O31 -> 39259233760 | P22: =P23+P24+P25+P26+P27+P28+P29+P30+P31 -> 0 | Q22: =Q23+Q24+Q25+Q26+Q27+Q28+Q29+Q30+Q31 -> -39259233760 | R22: =R23+R24+R25+R26+R27+R28+R29+R30+R31 -> 0 | S22: =S23+S24+S25+S26+S27+S28+S29+S30+S31 -> 0 | T22: =T23+T24+T25+T26+T27+T28+T29+T30+T31 -> 0 | U22: 0 | V22: =V23+V24+V25+V26+V27+V28+V29+V30+V31 -> 0 | W22: =W23+W24+W25+W26+W27+W28+W29+W30+W31 -> 0 | X22: =X23+X24+X25+X26+X27+X28+X29+X30+X31 -> 0 | Y22: 334011502130133 | Z22: INFRAESTRUCTURA PARA EL DESARROLLO DEL HABITAT | AA22: =AA23+AA24+AA25+AA26+AA27+AA28+AA29+AA30+AA31 -> 0 | AB22: =AB23+AB24+AB25+AB26+AB27+AB28+AB29+AB30+AB31 -> 0 | AC22: =AC23+AC24+AC25+AC26+AC27+AC28+AC29+AC30+AC31 -> 0 | AD22: =AD23+AD24+AD25+AD26+AD27+AD28+AD29+AD30+AD31 -> 0 | AE22: =AE23+AE24+AE25+AE26+AE27+AE28+AE29+AE30+AE31 -> 0 | AF22: =AF23+AF24+AF25+AF26+AF27+AF28+AF29+AF30+AF31 -> 0 | AG22: 0 | AH22: =AH23+AH24+AH25+AH26+AH27+AH28+AH29+AH30+AH31 -> 0 | AI22: =AI23+AI24+AI25+AI26+AI27+AI28+AI29+AI30+AI31 -> 0 | AJ22: 0 | AK22: 334011502130133 | AL22: INFRAESTRUCTURA PARA EL DESARROLLO DEL HABITAT | AM22: =AM23+AM24+AM25+AM26+AM27+AM28+AM29+AM30+AM31 -> 415918467999 | AN22: =AN23+AN24+AN25+AN26+AN27+AN28+AN29+AN30+AN31 -> 0 | AO22: =AO23+AO24+AO25+AO26+AO27+AO28+AO29+AO30+AO31 -> -415918467999 | AP22: =AP23+AP24+AP25+AP26+AP27+AP28+AP29+AP30+AP31 -> 0 | AQ22: =AQ23+AQ24+AQ25+AQ26+AQ27+AQ28+AQ29+AQ30+AQ31 -> 0 | AR22: =AR23+AR24+AR25+AR26+AR27+AR28+AR29+AR30+AR31 -> 0 | AS22: 0 | AT22: =AT23+AT24+AT25+AT26+AT27+AT28+AT29+AT30+AT31 -> 0 | AU22: =AU23+AU24+AU25+AU26+AU27+AU28+AU29+AU30+AU31 -> 0 | AV22: =AV23+AV24+AV25+AV26+AV27+AV28+AV29+AV30+AV31 -> 0
A23: 334011502130133000019 | B23: 0019 - CONSTRUCCIÓN DE REDES LOCALES PARA EL SERVICIO DE ALC | C23: 11668762025 | D23: 0 | E23: -11668762025 | F23: 0 | G23: 0 | H23: 0 | I23: 0 | J23: 0 | K23: 0 | L23: 0 | M23: 334011502130133000019 | N23: 0019 - CONSTRUCCIÓN DE REDES LOCALES PARA EL SERVICIO DE ALC | O23: 5275090598 | P23: 0 | Q23: -5275090598 | R23: 0 | S23: 0 | T23: 0 | U23: 0 | V23: 0 | W23: 0 | X23: 0 | Y23: 334011502130133000019 | Z23: 0019 - CONSTRUCCIÓN DE REDES LOCALES PARA EL SERVICIO DE ALC | AA23: 0 | AB23: 0 | AC23: 0 | AD23: 0 | AE23: 0 | AF23: 0 | AG23: 0 | AH23: 0 | AI23: 0 | AJ23: 0 | AK23: 334011502130133000019 | AL23: 0019 - CONSTRUCCIÓN DE REDES LOCALES PARA EL SERVICIO DE ALC | AM23: 16943852623 | AN23: 0 | AO23: -16943852623 | AP23: 0 | AQ23: 0 | AR23: 0 | AS23: 0 | AT23: 0 | AU23: 0 | AV23: 0
A24: 334011502130133000020 | B24: 0020 - CONSTRUCCIÓN DE REDES LOCALES PARA EL SERVICIO DE ALC | C24: 14636414189 | D24: 0 | E24: -14636414189 | F24: 0 | G24: 0 | H24: 0 | I24: 0 | J24: 0 | K24: 0 | L24: 0 | M24: 334011502130133000020 | N24: 0020 - CONSTRUCCIÓN DE REDES LOCALES PARA EL SERVICIO DE ALC | O24: 7487307593 | P24: 0 | Q24: -7487307593 | R24: 0 | S24: 0 | T24: 0 | U24: 0 | V24: 0 | W24: 0 | X24: 0 | Y24: 334011502130133000020 | Z24: 0020 - CONSTRUCCIÓN DE REDES LOCALES PARA EL SERVICIO DE ALC | AA24: 0 | AB24: 0 | AC24: 0 | AD24: 0 | AE24: 0 | AF24: 0 | AG24: 0 | AH24: 0 | AI24: 0 | AJ24: 0 | AK24: 334011502130133000020 | AL24: 0020 - CONSTRUCCIÓN DE REDES LOCALES PARA EL SERVICIO DE ALC | AM24: 22123721782 | AN24: 0 | AO24: -22123721782 | AP24: 0 | AQ24: 0 | AR24: 0 | AS24: 0 | AT24: 0 | AU24: 0 | AV24: 0
A25: 334011502130133000050 | B25: 0050 - RENOVACIÓN, REHABILITACIÓN O REPOSICIÓN DE LOS SISTEM | C25: 203261089828 | D25: 0 | E25: -203261089828 | F25: 0 | G25: 0 | H25: 0 | I25: 0 | J25: 0 | K25: 0 | L25: 0 | M25: 334011502130133000050 | N25: 0050 - RENOVACIÓN, REHABILITACIÓN O REPOSICIÓN DE LOS SISTEM | O25: 23627949336 | P25: 0 | Q25: -23627949336 | R25: 0 | S25: 0 | T25: 0 | U25: 0 | V25: 0 | W25: 0 | X25: 0 | Y25: 334011502130133000050 | Z25: 0050 - RENOVACIÓN, REHABILITACIÓN O REPOSICIÓN DE LOS SISTEM | AA25: 0 | AB25: 0 | AC25: 0 | AD25: 0 | AE25: 0 | AF25: 0 | AG25: 0 | AH25: 0 | AI25: 0 | AJ25: 0 | AK25: 334011502130133000050 | AL25: 0050 - RENOVACIÓN, REHABILITACIÓN O REPOSICIÓN DE LOS SISTEM | AM25: 226889039164 | AN25: 0 | AO25: -226889039164 | AP25: 0 | AQ25: 0 | AR25: 0 | AS25: 0 | AT25: 0 | AU25: 0 | AV25: 0
A26: 334011502130133000051 | B26: 0051 - RENOVACIÓN, REHABILITACIÓN O REPOSICIÓN DEL SISTEMA T | C26: 39298907867 | D26: 0 | E26: -39298907867 | F26: 0 | G26: 0 | H26: 0 | I26: 0 | J26: 0 | K26: 0 | L26: 0 | M26: 334011502130133000051 | N26: 0051 - RENOVACIÓN, REHABILITACIÓN O REPOSICIÓN DEL SISTEMA T | O26: 0 | P26: 0 | Q26: 0 | R26: 0 | S26: 0 | T26: 0 | U26: 0 | V26: 0 | W26: 0 | X26: 0 | Y26: 334011502130133000051 | Z26: 0051 - RENOVACIÓN, REHABILITACIÓN O REPOSICIÓN DEL SISTEMA T | AA26: 0 | AB26: 0 | AC26: 0 | AD26: 0 | AE26: 0 | AF26: 0 | AG26: 0 | AH26: 0 | AI26: 0 | AJ26: 0 | AK26: 334011502130133000051 | AL26: 0051 - RENOVACIÓN, REHABILITACIÓN O REPOSICIÓN DEL SISTEMA T | AM26: 39298907867 | AN26: 0 | AO26: -39298907867 | AP26: 0 | AQ26: 0 | AR26: 0 | AS26: 0 | AT26: 0 | AU26: 0 | AV26: 0
A27: 334011502130133000052 | B27: 0052 - RENOVACIÓN, REHABILITACIÓN O REPOSICIÓN DEL SISTEMA T | C27: 14427013747 | D27: 0 | E27: -14427013747 | F27: 0 | G27: 0 | H27: 0 | I27: 0 | J27: 0 | K27: 0 | L27: 0 | M27: 334011502130133000052 | N27: 0052 - RENOVACIÓN, REHABILITACIÓN O REPOSICIÓN DEL SISTEMA T | O27: 0 | P27: 0 | Q27: 0 | R27: 0 | S27: 0 | T27: 0 | U27: 0 | V27: 0 | W27: 0 | X27: 0 | Y27: 334011502130133000052 | Z27: 0052 - RENOVACIÓN, REHABILITACIÓN O REPOSICIÓN DEL SISTEMA T | AA27: 0 | AB27: 0 | AC27: 0 | AD27: 0 | AE27: 0 | AF27: 0 | AG27: 0 | AH27: 0 | AI27: 0 | AJ27: 0 | AK27: 334011502130133000052 | AL27: 0052 - RENOVACIÓN, REHABILITACIÓN O REPOSICIÓN DEL SISTEMA T | AM27: 14427013747 | AN27: 0 | AO27: -14427013747 | AP27: 0 | AQ27: 0 | AR27: 0 | AS27: 0 | AT27: 0 | AU27: 0 | AV27: 0
A28: 334011502130133000054 | B28: 0054 - ACCIONES PARA EL SANEAMIENTO DEL RÍO BOGOTÁ | C28: 65381426116 | D28: 0 | E28: -65381426116 | F28: 0 | G28: 0 | H28: 0 | I28: 0 | J28: 0 | K28: 0 | L28: 0 | M28: 334011502130133000054 | N28: 0054 - ACCIONES PARA EL SANEAMIENTO DEL RÍO BOGOTÁ | O28: 0 | P28: 0 | Q28: 0 | R28: 0 | S28: 0 | T28: 0 | U28: 0 | V28: 0 | W28: 0 | X28: 0 | Y28: 334011502130133000054 | Z28: 0054 - ACCIONES PARA EL SANEAMIENTO DEL RÍO BOGOTÁ | AA28: 0 | AB28: 0 | AC28: 0 | AD28: 0 | AE28: 0 | AF28: 0 | AG28: 0 | AH28: 0 | AI28: 0 | AJ28: 0 | AK28: 334011502130133000054 | AL28: 0054 - ACCIONES PARA EL SANEAMIENTO DEL RÍO BOGOTÁ | AM28: 65381426116 | AN28: 0 | AO28: -65381426116 | AP28: 0 | AQ28: 0 | AR28: 0 | AS28: 0 | AT28: 0 | AU28: 0 | AV28: 0
A29: 334011502130133000068 | B29: 0068 - CONSTRUCCIÓN, RENOVACIÓN, REHABILITACIÓN O REPOSICIÓN | C29: 10754705083 | D29: 0 | E29: -10754705083 | F29: 0 | G29: 0 | H29: 0 | I29: 0 | J29: 0 | K29: 0 | L29: 0 | M29: 334011502130133000068 | N29: 0068 - CONSTRUCCIÓN, RENOVACIÓN, REHABILITACIÓN O REPOSICIÓN | O29: 0 | P29: 0 | Q29: 0 | R29: 0 | S29: 0 | T29: 0 | U29: 0 | V29: 0 | W29: 0 | X29: 0 | Y29: 334011502130133000068 | Z29: 0068 - CONSTRUCCIÓN, RENOVACIÓN, REHABILITACIÓN O REPOSICIÓN | AA29: 0 | AB29: 0 | AC29: 0 | AD29: 0 | AE29: 0 | AF29: 0 | AG29: 0 | AH29: 0 | AI29: 0 | AJ29: 0 | AK29: 334011502130133000068 | AL29: 0068 - CONSTRUCCIÓN, RENOVACIÓN, REHABILITACIÓN O REPOSICIÓN | AM29: 10754705083 | AN29: 0 | AO29: -10754705083 | AP29: 0 | AQ29: 0 | AR29: 0 | AS29: 0 | AT29: 0 | AU29: 0 | AV29: 0
A30: 334011502130133007334 | B30: 7334 - CONSTRUCCIÓN Y EXPANSIÓN DEL SISTEMA DE ABASTECIMIENT | C30: 13433170360 | D30: 0 | E30: -13433170360 | F30: 0 | G30: 0 | H30: 0 | I30: 0 | J30: 0 | K30: 0 | L30: 0 | M30: 334011502130133007334 | N30: 7334 - CONSTRUCCIÓN Y EXPANSIÓN DEL SISTEMA DE ABASTECIMIENT | O30: 0 | P30: 0 | Q30: 0 | R30: 0 | S30: 0 | T30: 0 | U30: 0 | V30: 0 | W30: 0 | X30: 0 | Y30: 334011502130133007334 | Z30: 7334 - CONSTRUCCIÓN Y EXPANSIÓN DEL SISTEMA DE ABASTECIMIENT | AA30: 0 | AB30: 0 | AC30: 0 | AD30: 0 | AE30: 0 | AF30: 0 | AG30: 0 | AH30: 0 | AI30: 0 | AJ30: 0 | AK30: 334011502130133007334 | AL30: 7334 - CONSTRUCCIÓN Y EXPANSIÓN DEL SISTEMA DE ABASTECIMIENT | AM30: 13433170360 | AN30: 0 | AO30: -13433170360 | AP30: 0 | AQ30: 0 | AR30: 0 | AS30: 0 | AT30: 0 | AU30: 0 | AV30: 0
A31: 334011502130133007338 | B31: 7338 - CONSTRUCCIÓN DE REDES LOCALES PARA EL SERVICIO DE ACU | C31: 3797745024 | D31: 0 | E31: -3797745024 | F31: 0 | G31: 0 | H31: 0 | I31: 0 | J31: 0 | K31: 0 | L31: 0 | M31: 334011502130133007338 | N31: 7338 - CONSTRUCCIÓN DE REDES LOCALES PARA EL SERVICIO DE ACU | O31: 2868886233 | P31: 0 | Q31: -2868886233 | R31: 0 | S31: 0 | T31: 0 | U31: 0 | V31: 0 | W31: 0 | X31: 0 | Y31: 334011502130133007338 | Z31: 7338 - CONSTRUCCIÓN DE REDES LOCALES PARA EL SERVICIO DE ACU | AA31: 0 | AB31: 0 | AC31: 0 | AD31: 0 | AE31: 0 | AF31: 0 | AG31: 0 | AH31: 0 | AI31: 0 | AJ31: 0 | AK31: 334011502130133007338 | AL31: 7338 - CONSTRUCCIÓN DE REDES LOCALES PARA EL SERVICIO DE ACU | AM31: 6666631257 | AN31: 0 | AO31: -6666631257 | AP31: 0 | AQ31: 0 | AR31: 0 | AS31: 0 | AT31: 0 | AU31: 0 | AV31: 0
A32: 334011506000000 | B32: EJE TRANSV. SOSTENIB. AMBIENTAL BASADA EFICIENCIA ENERGETICA | C32: =C33+C36 -> 5687516019 | D32: =D33+D36 -> 0 | E32: -5687516019 | F32: 0 | G32: 0 | H32: 0 | I32: 0 | J32: =J33+J36 -> 0 | K32: 0 | L32: 0 | M32: 334011506000000 | N32: EJE TRANSV. SOSTENIB. AMBIENTAL BASADA EFICIENCIA ENERGETICA | O32: =O33+O36 -> 0 | P32: =P33+P36 -> 0 | Q32: =Q33+Q36 -> 0 | R32: =R33+R36 -> 0 | S32: =S33+S36 -> 0 | T32: =T33+T36 -> 0 | U32: 0 | V32: =V33+V36 -> 0 | W32: =W33+W36 -> 0 | X32: =X33+X36 -> 0 | Y32: 334011506000000 | Z32: EJE TRANSV. SOSTENIB. AMBIENTAL BASADA EFICIENCIA ENERGETICA | AA32: =AA33+AA36 -> 0 | AB32: =AB33+AB36 -> 0 | AC32: =AC33+AC36 -> 0 | AD32: =AD33+AD36 -> 0 | AE32: =AE33+AE36 -> 0 | AF32: =AF33+AF36 -> 0 | AG32: 0 | AH32: =AH33+AH36 -> 0 | AI32: =AI33+AI36 -> 0 | AJ32: 0 | AK32: 334011506000000 | AL32: EJE TRANSV. SOSTENIB. AMBIENTAL BASADA EFICIENCIA ENERGETICA | AM32: =AM33+AM36 -> 5687516019 | AN32: =AN33+AN36 -> 0 | AO32: =AO33+AO36 -> -5687516019 | AP32: =AP33+AP36 -> 0 | AQ32: =AQ33+AQ36 -> 0 | AR32: =AR33+AR36 -> 0 | AS32: 0 | AT32: =AT33+AT36 -> 0 | AU32: =AU33+AU36 -> 0 | AV32: =AV33+AV36 -> 0
A33: 334011506380000 | B33: RECUPERACION Y MANEJO ESTRUCTURA ECOLOGICA PRINCIPAL | C33: =C34 -> 764011757 | D33: =D34 -> 0 | E33: -764011757 | F33: 0 | G33: 0 | H33: 0 | I33: 0 | J33: =J34 -> 0 | K33: 0 | L33: 0 | M33: 334011506380000 | N33: RECUPERACION Y MANEJO ESTRUCTURA ECOLOGICA PRINCIPAL | O33: =O34 -> 0 | P33: =P34 -> 0 | Q33: =Q34 -> 0 | R33: =R34 -> 0 | S33: =S34 -> 0 | T33: =T34 -> 0 | U33: 0 | V33: =V34 -> 0 | W33: =W34 -> 0 | X33: =X34 -> 0 | Y33: 334011506380000 | Z33: RECUPERACION Y MANEJO ESTRUCTURA ECOLOGICA PRINCIPAL | AA33: =AA34 -> 0 | AB33: =AB34 -> 0 | AC33: =AC34 -> 0 | AD33: =AD34 -> 0 | AE33: =AE34 -> 0 | AF33: =AF34 -> 0 | AG33: 0 | AH33: =AH34 -> 0 | AI33: =AI34 -> 0 | AJ33: 0 | AK33: 334011506380000 | AL33: RECUPERACION Y MANEJO ESTRUCTURA ECOLOGICA PRINCIPAL | AM33: =AM34 -> 764011757 | AN33: =AN34 -> 0 | AO33: =AO34 -> -764011757 | AP33: =AP34 -> 0 | AQ33: =AQ34 -> 0 | AR33: =AR34 -> 0 | AS33: 0 | AT33: =AT34 -> 0 | AU33: =AU34 -> 0 | AV33: =AV34 -> 0
A34: 334011506380177 | B34: CONSOLIDACION DE LA ESTRUCTURA ECOLOGICA PRINCIPAL | C34: =C35 -> 764011757 | D34: 0 | E34: -764011757 | F34: 0 | G34: 0 | H34: 0 | I34: 0 | J34: 0 | K34: 0 | L34: 0 | M34: 334011506380177 | N34: CONSOLIDACION DE LA ESTRUCTURA ECOLOGICA PRINCIPAL | O34: =O35 -> 0 | P34: 0 | Q34: 0 | R34: 0 | S34: 0 | T34: 0 | U34: 0 | V34: 0 | W34: 0 | X34: 0 | Y34: 334011506380177 | Z34: CONSOLIDACION DE LA ESTRUCTURA ECOLOGICA PRINCIPAL | AA34: =AA35 -> 0 | AB34: 0 | AC34: 0 | AD34: 0 | AE34: 0 | AF34: 0 | AG34: 0 | AH34: 0 | AI34: 0 | AJ34: 0 | AK34: 334011506380177 | AL34: CONSOLIDACION DE LA ESTRUCTURA ECOLOGICA PRINCIPAL | AM34: =AM35 -> 764011757 | AN34: 0 | AO34: -764011757 | AP34: 0 | AQ34: 0 | AR34: 0 | AS34: 0 | AT34: 0 | AU34: 0 | AV34: 0
A35: 334011506380177007341 | B35: 7341 - ADEC.HIDRAULICA RECUP.AMB.HUMED,QUEBRADAS,RIOS CUENCA | C35: 764011757 | D35: 0 | E35: -764011757 | F35: 0 | G35: 0 | H35: 0 | I35: 0 | J35: 0 | K35: 0 | L35: 0 | M35: 334011506380177007341 | N35: 7341 - ADEC.HIDRAULICA RECUP.AMB.HUMED,QUEBRADAS,RIOS CUENCA | O35: 0 | P35: 0 | Q35: 0 | R35: 0 | S35: 0 | T35: 0 | U35: 0 | V35: 0 | W35: 0 | X35: 0 | Y35: 334011506380177007341 | Z35: 7341 - ADEC.HIDRAULICA RECUP.AMB.HUMED,QUEBRADAS,RIOS CUENCA | AA35: 0 | AB35: 0 | AC35: 0 | AD35: 0 | AE35: 0 | AF35: 0 | AG35: 0 | AH35: 0 | AI35: 0 | AJ35: 0 | AK35: 334011506380177007341 | AL35: 7341 - ADEC.HIDRAULICA RECUP.AMB.HUMED,QUEBRADAS,RIOS CUENCA | AM35: 764011757 | AN35: 0 | AO35: -764011757 | AP35: 0 | AQ35: 0 | AR35: 0 | AS35: 0 | AT35: 0 | AU35: 0 | AV35: 0
A36: 334011506390000 | B36: AMBIENTE SANO PARA LA EQUIDAD Y DISFRUTE DEL CIUDADANO | C36: =C37 -> 4923504262 | D36: =D37 -> 0 | E36: -4923504262 | F36: 0 | G36: 0 | H36: 0 | I36: 0 | J36: =J37 -> 0 | K36: 0 | L36: 0 | M36: 334011506390000 | N36: AMBIENTE SANO PARA LA EQUIDAD Y DISFRUTE DEL CIUDADANO | O36: =O37 -> 0 | P36: =P37 -> 0 | Q36: =Q37 -> 0 | R36: =R37 -> 0 | S36: =S37 -> 0 | T36: =T37 -> 0 | U36: 0 | V36: =V37 -> 0 | W36: =W37 -> 0 | X36: =X37 -> 0 | Y36: 334011506390000 | Z36: AMBIENTE SANO PARA LA EQUIDAD Y DISFRUTE DEL CIUDADANO | AA36: =AA37 -> 0 | AB36: =AB37 -> 0 | AC36: =AC37 -> 0 | AD36: =AD37 -> 0 | AE36: =AE37 -> 0 | AF36: =AF37 -> 0 | AG36: 0 | AH36: =AH37 -> 0 | AI36: =AI37 -> 0 | AJ36: 0 | AK36: 334011506390000 | AL36: AMBIENTE SANO PARA LA EQUIDAD Y DISFRUTE DEL CIUDADANO | AM36: =AM37 -> 4923504262 | AN36: =AN37 -> 0 | AO36: =AO37 -> -4923504262 | AP36: =AP37 -> 0 | AQ36: =AQ37 -> 0 | AR36: =AR37 -> 0 | AS36: 0 | AT36: =AT37 -> 0 | AU36: =AU37 -> 0 | AV36: =AV37 -> 0
A37: 334011506390179 | B37: AMBIENTE SANO | C37: =C38 -> 4923504262 | D37: 0 | E37: -4923504262 | F37: 0 | G37: 0 | H37: 0 | I37: 0 | J37: 0 | K37: 0 | L37: 0 | M37: 334011506390179 | N37: AMBIENTE SANO | O37: =O38 -> 0 | P37: 0 | Q37: 0 | R37: 0 | S37: 0 | T37: 0 | U37: 0 | V37: 0 | W37: 0 | X37: 0 | Y37: 334011506390179 | Z37: AMBIENTE SANO | AA37: =AA38 -> 0 | AB37: 0 | AC37: 0 | AD37: 0 | AE37: 0 | AF37: 0 | AG37: 0 | AH37: 0 | AI37: 0 | AJ37: 0 | AK37: 334011506390179 | AL37: AMBIENTE SANO | AM37: =AM38 -> 4923504262 | AN37: 0 | AO37: -4923504262 | AP37: 0 | AQ37: 0 | AR37: 0 | AS37: 0 | AT37: 0 | AU37: 0 | AV37: 0
A38: 334011506390179000082 | B38: 0082 - PLAN DE SANEAMIENTO Y MANEJO DE VERTIMIENTOS | C38: 4923504262 | D38: 0 | E38: -4923504262 | F38: 0 | G38: 0 | H38: 0 | I38: 0 | J38: 0 | K38: 0 | L38: 0 | M38: 334011506390179000082 | N38: 0082 - PLAN DE SANEAMIENTO Y MANEJO DE VERTIMIENTOS | O38: 0 | P38: 0 | Q38: 0 | R38: 0 | S38: 0 | T38: 0 | U38: 0 | V38: 0 | W38: 0 | X38: 0 | Y38: 334011506390179000082 | Z38: 0082 - PLAN DE SANEAMIENTO Y MANEJO DE VERTIMIENTOS | AA38: 0 | AB38: 0 | AC38: 0 | AD38: 0 | AE38: 0 | AF38: 0 | AG38: 0 | AH38: 0 | AI38: 0 | AJ38: 0 | AK38: 334011506390179000082 | AL38: 0082 - PLAN DE SANEAMIENTO Y MANEJO DE VERTIMIENTOS | AM38: 4923504262 | AN38: 0 | AO38: -4923504262 | AP38: 0 | AQ38: 0 | AR38: 0 | AS38: 0 | AT38: 0 | AU38: 0 | AV38: 0
A39: 334334011600000000011600000000 | B39: UN NUEVO CONTRATO SOCIAL Y AMBIENTAL BOGOTÁ DEL SIGLO XXI | C39: =C40 -> 0 | D39: =D40 -> 0 | E39: 388292480288 | F39: 388292480288 | G39: 0 | H39: 378368106509 | I39: 0.9744409838 | J39: =J40 -> 212412972 | K39: 5328060880 | L39: 4596312899 | M39: 334334011600000000011600000000 | N39: UN NUEVO CONTRATO SOCIAL Y AMBIENTAL BOGOTÁ DEL SIGLO XXI | O39: =O40 -> 0 | P39: =P40 -> 0 | Q39: =Q40 -> 41857633093 | R39: =R40 -> 41857633093 | S39: =S40 -> 0 | T39: =T40 -> 39259233760 | U39: 0.9379229273 | V39: =V40 -> 51377465 | W39: =W40 -> 2598399333 | X39: =X40 -> 0 | Y39: 334334011600000000011600000000 | Z39: UN NUEVO CONTRATO SOCIAL Y AMBIENTAL BOGOTÁ DEL SIGLO XXI | AA39: =AA40 -> 0 | AB39: =AB40 -> 0 | AC39: =AC40 -> 636755468 | AD39: =AD40 -> 636755468 | AE39: =AE40 -> 0 | AF39: =AF40 -> 0 | AG39: 0 | AH39: =AH40 -> 0 | AI39: =AI40 -> 636755468 | AJ39: 0 | AK39: 334334011600000000011600000000 | AL39: UN NUEVO CONTRATO SOCIAL Y AMBIENTAL BOGOTÁ DEL SIGLO XXI | AM39: =AM40 -> 0 | AN39: =AN40 -> 0 | AO39: =AO40 -> 430786868849 | AP39: =AP40 -> 430786868849 | AQ39: =AQ40 -> 0 | AR39: =AR40 -> 417627340269 | AS39: 0.9694523452 | AT39: =AT40 -> 263790437 | AU39: =AU40 -> 8563215681 | AV39: =AV40 -> 4596312899
A40: 334011602000000 | B40: CAMBIAR HÁBITOS DE VIDA ADAPTARNOS Y MITIGAR CRISIS CLIMATIC | C40: =C41+C48 -> 0 | D40: =D41+D48 -> 0 | E40: 388292480288 | F40: 388292480288 | G40: 0 | H40: 378368106509 | I40: 0.9744409838 | J40: =J41+J48 -> 212412972 | K40: 5328060880 | L40: 4596312899 | M40: 334011602000000 | N40: CAMBIAR HÁBITOS DE VIDA ADAPTARNOS Y MITIGAR CRISIS CLIMATIC | O40: =O41+O48 -> 0 | P40: =P41+P48 -> 0 | Q40: =Q41+Q48 -> 41857633093 | R40: =R41+R48 -> 41857633093 | S40: =S41+S48 -> 0 | T40: =T41+T48 -> 39259233760 | U40: 0.9379229273 | V40: =V41+V48 -> 51377465 | W40: =W41+W48 -> 2598399333 | X40: =X41+X48 -> 0 | Y40: 334011602000000 | Z40: CAMBIAR HÁBITOS DE VIDA ADAPTARNOS Y MITIGAR CRISIS CLIMATIC | AA40: =AA41+AA48 -> 0 | AB40: =AB41+AB48 -> 0 | AC40: =AC41+AC48 -> 636755468 | AD40: =AD41+AD48 -> 636755468 | AE40: =AE41+AE48 -> 0 | AF40: =AF41+AF48 -> 0 | AG40: 0 | AH40: =AH41+AH48 -> 0 | AI40: =AI41+AI48 -> 636755468 | AJ40: 0 | AK40: 334011602000000 | AL40: CAMBIAR HÁBITOS DE VIDA ADAPTARNOS Y MITIGAR CRISIS CLIMATIC | AM40: =AM41+AM48 -> 0 | AN40: =AN41+AN48 -> 0 | AO40: =AO41+AO48 -> 430786868849 | AP40: =AP41+AP48 -> 430786868849 | AQ40: =AQ41+AQ48 -> 0 | AR40: =AR41+AR48 -> 417627340269 | AS40: 0.9694523452 | AT40: =AT41+AT48 -> 263790437 | AU40: =AU41+AU48 -> 8563215681 | AV40: =AV41+AV48 -> 4596312899
A41: 334011602060000 | B41: RESTAURACIÓN, PRESERVACIÓN Y MANTENIMIENTO AMBIENTE NATURAL | C41: =C42+C44 -> 0 | D41: =D42+D44 -> 0 | E41: 60243519755 | F41: 60243519755 | G41: 0 | H41: 56637611857 | I41: 0.9401444684 | J41: =J42+J44 -> 830082122 | K41: 830082122 | L41: 2775825776 | M41: 334011602060000 | N41: RESTAURACIÓN, PRESERVACIÓN Y MANTENIMIENTO AMBIENTE NATURAL | O41: =O42+O44 -> 0 | P41: =P42+P44 -> 0 | Q41: =Q42+Q44 -> 51377465 | R41: =R42+R44 -> 51377465 | S41: =S42+S44 -> 0 | T41: =T42+T44 -> 0 | U41: 0 | V41: =V42+V44 -> 51377465 | W41: =W42+W44 -> 51377465 | X41: =X42+X44 -> 0 | Y41: 334011602060000 | Z41: RESTAURACIÓN, PRESERVACIÓN Y MANTENIMIENTO AMBIENTE NATURAL | AA41: =AA42+AA44 -> 0 | AB41: =AB42+AB44 -> 0 | AC41: =AC42+AC44 -> 0 | AD41: =AD42+AD44 -> 0 | AE41: =AE42+AE44 -> 0 | AF41: =AF42+AF44 -> 0 | AG41: 0 | AH41: =AH42+AH44 -> 0 | AI41: =AI42+AI44 -> 0 | AJ41: 0 | AK41: 334011602060000 | AL41: RESTAURACIÓN, PRESERVACIÓN Y MANTENIMIENTO AMBIENTE NATURAL | AM41: =AM42+AM44 -> 0 | AN41: =AN42+AN44 -> 0 | AO41: =AO42+AO44 -> 60294897220 | AP41: =AP42+AP44 -> 60294897220 | AQ41: =AQ42+AQ44 -> 0 | AR41: =AR42+AR44 -> 56637611857 | AS41: 0.9393433685 | AT41: =AT42+AT44 -> 881459587 | AU41: =AU42+AU44 -> 881459587 | AV41: =AV42+AV44 -> 2775825776
A42: 334011602062800 | B42: BOGOTÁ PROTECTORA DE SUS RECURSOS NATURALES | C42: =C43 -> 0 | D42: =D43 -> 0 | E42: 764011757 | F42: 764011757 | G42: 0 | H42: 764011757 | I42: 1 | J42: =J43 -> 0 | K42: 0 | L42: 0 | M42: 334011602062800 | N42: BOGOTÁ PROTECTORA DE SUS RECURSOS NATURALES | O42: =O43 -> 0 | P42: =P43 -> 0 | Q42: =Q43 -> 0 | R42: =R43 -> 0 | S42: =S43 -> 0 | T42: =T43 -> 0 | U42: 0 | V42: =V43 -> 0 | W42: =W43 -> 0 | X42: =X43 -> 0 | Y42: 334011602062800 | Z42: BOGOTÁ PROTECTORA DE SUS RECURSOS NATURALES | AA42: =AA43 -> 0 | AB42: =AB43 -> 0 | AC42: =AC43 -> 0 | AD42: =AD43 -> 0 | AE42: =AE43 -> 0 | AF42: =AF43 -> 0 | AG42: 0 | AH42: =AH43 -> 0 | AI42: =AI43 -> 0 | AJ42: 0 | AK42: 334011602062800 | AL42: BOGOTÁ PROTECTORA DE SUS RECURSOS NATURALES | AM42: =AM43 -> 0 | AN42: =AN43 -> 0 | AO42: =AO43 -> 764011757 | AP42: =AP43 -> 764011757 | AQ42: =AQ43 -> 0 | AR42: =AR43 -> 764011757 | AS42: 1 | AT42: =AT43 -> 0 | AU42: =AU43 -> 0 | AV42: =AV43 -> 0
A43: 334011602062800147341 | B43: 7341 -ADECUACIÓN HIDRÁULICA Y RECUPERACIÓN AMBIENTAL DE HUME | C43: 0 | D43: 0 | E43: 764011757 | F43: 764011757 | G43: 0 | H43: 764011757 | I43: 1 | J43: 0 | K43: 0 | L43: 0 | M43: 334011602062800147341 | N43: 7341 -ADECUACIÓN HIDRÁULICA Y RECUPERACIÓN AMBIENTAL DE HUME | O43: 0 | P43: 0 | Q43: 0 | R43: 0 | S43: 0 | T43: 0 | U43: 0 | V43: 0 | W43: 0 | X43: 0 | Y43: 334011602062800147341 | Z43: 7341 -ADECUACIÓN HIDRÁULICA Y RECUPERACIÓN AMBIENTAL DE HUME | AA43: 0 | AB43: 0 | AC43: 0 | AD43: 0 | AE43: 0 | AF43: 0 | AG43: 0 | AH43: 0 | AI43: 0 | AJ43: 0 | AK43: 334011602062800147341 | AL43: 7341 -ADECUACIÓN HIDRÁULICA Y RECUPERACIÓN AMBIENTAL DE HUME | AM43: 0 | AN43: 0 | AO43: 764011757 | AP43: 764011757 | AQ43: 0 | AR43: 764011757 | AS43: 1 | AT43: 0 | AU43: 0 | AV43: 0
A44: 334011602063600 | B44: MANEJO Y SANEAMIENTO DE LOS CUERPOS DE AGUA | C44: =C45+C46+C47 -> 0 | D44: =D45+D46+D47 -> 0 | E44: 59479507998 | F44: 59479507998 | G44: 0 | H44: 55873600100 | I44: 0.9393756267 | J44: =J45+J46+J47 -> 830082122 | K44: =K45+K46+K47 -> 830082122 | L44: =L45+L46+L47 -> 2775825776 | M44: 334011602063600 | N44: MANEJO Y SANEAMIENTO DE LOS CUERPOS DE AGUA | O44: =O45+O46+O47 -> 0 | P44: =P45+P46+P47 -> 0 | Q44: =Q45+Q46+Q47 -> 51377465 | R44: =R45+R46+R47 -> 51377465 | S44: =S45+S46+S47 -> 0 | T44: =T45+T46+T47 -> 0 | U44: 0 | V44: =V45+V46+V47 -> 51377465 | W44: =W45+W46+W47 -> 51377465 | X44: =X45+X46+X47 -> 0 | Y44: 334011602063600 | Z44: MANEJO Y SANEAMIENTO DE LOS CUERPOS DE AGUA | AA44: =AA45+AA46+AA47 -> 0 | AB44: =AB45+AB46+AB47 -> 0 | AC44: =AC45+AC46+AC47 -> 0 | AD44: =AD45+AD46+AD47 -> 0 | AE44: =AE45+AE46+AE47 -> 0 | AF44: =AF45+AF46+AF47 -> 0 | AG44: 0 | AH44: =AH45+AH46+AH47 -> 0 | AI44: =AI45+AI46+AI47 -> 0 | AJ44: 0 | AK44: 334011602063600 | AL44: MANEJO Y SANEAMIENTO DE LOS CUERPOS DE AGUA | AM44: =AM45+AM46+AM47 -> 0 | AN44: =AN45+AN46+AN47 -> 0 | AO44: =AO45+AO46+AO47 -> 59530885463 | AP44: =AP45+AP46+AP47 -> 59530885463 | AQ44: =AQ45+AQ46+AQ47 -> 0 | AR44: =AR45+AR46+AR47 -> 55873600100 | AS44: 0.938564909 | AT44: =AT45+AT46+AT47 -> 881459587 | AU44: =AU45+AU46+AU47 -> 881459587 | AV44: =AV45+AV46+AV47 -> 2775825776
A45: 334011602063600190051 | B45: 0051 - RENOVACIÓN Y/O REPOSICIÓN DEL SISTEMA TRONCAL, SECUND | C45: 0 | D45: 0 | E45: 39298907867 | F45: 39298907867 | G45: 0 | H45: 37539925496 | I45: 0.955240935 | J45: 0 | K45: 0 | L45: 1758982371 | M45: 334011602063600190051 | N45: 0051 - RENOVACIÓN Y/O REPOSICIÓN DEL SISTEMA TRONCAL, SECUND | O45: 0 | P45: 0 | Q45: 0 | R45: 0 | S45: 0 | T45: 0 | U45: 0 | V45: 0 | W45: 0 | X45: 0 | Y45: 334011602063600190051 | Z45: 0051 - RENOVACIÓN Y/O REPOSICIÓN DEL SISTEMA TRONCAL, SECUND | AA45: 0 | AB45: 0 | AC45: 0 | AD45: 0 | AE45: 0 | AF45: 0 | AG45: 0 | AH45: 0 | AI45: 0 | AJ45: 0 | AK45: 334011602063600190051 | AL45: 0051 - RENOVACIÓN Y/O REPOSICIÓN DEL SISTEMA TRONCAL, SECUND | AM45: 0 | AN45: 0 | AO45: 39298907867 | AP45: 39298907867 | AQ45: 0 | AR45: 37539925496 | AS45: 0.955240935 | AT45: 0 | AU45: 0 | AV45: 1758982371
A46: 334011602063600190052 | B46: 0052 - RENOVACIÓN Y/O REPOSICIÓN DEL SISTEMA TRONCAL, SECUND | C46: 0 | D46: 0 | E46: 14427013747 | F46: 14427013747 | G46: 0 | H46: 14185264442 | I46: 0.9832432887 | J46: 0 | K46: 0 | L46: 241749305 | M46: 334011602063600190052 | N46: 0052 - RENOVACIÓN Y/O REPOSICIÓN DEL SISTEMA TRONCAL, SECUND | O46: 0 | P46: 0 | Q46: 0 | R46: 0 | S46: 0 | T46: 0 | U46: 0 | V46: 0 | W46: 0 | X46: 0 | Y46: 334011602063600190052 | Z46: 0052 - RENOVACIÓN Y/O REPOSICIÓN DEL SISTEMA TRONCAL, SECUND | AA46: 0 | AB46: 0 | AC46: 0 | AD46: 0 | AE46: 0 | AF46: 0 | AG46: 0 | AH46: 0 | AI46: 0 | AJ46: 0 | AK46: 334011602063600190052 | AL46: 0052 - RENOVACIÓN Y/O REPOSICIÓN DEL SISTEMA TRONCAL, SECUND | AM46: 0 | AN46: 0 | AO46: 14427013747 | AP46: 14427013747 | AQ46: 0 | AR46: 14185264442 | AS46: 0.9832432887 | AT46: 0 | AU46: 0 | AV46: 241749305
A47: 334011602063600190082 | B47: 0082 - DESARROLLO DEL PLAN DE SANEAMIENTO Y MANEJO DE VERTIM | C47: 0 | D47: 0 | E47: 5753586384 | F47: 5753586384 | G47: 0 | H47: 4148410162 | I47: 0.7210129274 | J47: 830082122 | K47: 830082122 | L47: 775094100 | M47: 334011602063600190082 | N47: 0082 - DESARROLLO DEL PLAN DE SANEAMIENTO Y MANEJO DE VERTIM | O47: 0 | P47: 0 | Q47: 51377465 | R47: 51377465 | S47: 0 | T47: 0 | U47: 0 | V47: 51377465 | W47: 51377465 | X47: 0 | Y47: 334011602063600190082 | Z47: 0082 - DESARROLLO DEL PLAN DE SANEAMIENTO Y MANEJO DE VERTIM | AA47: 0 | AB47: 0 | AC47: 0 | AD47: 0 | AE47: 0 | AF47: 0 | AG47: 0 | AH47: 0 | AI47: 0 | AJ47: 0 | AK47: 334011602063600190082 | AL47: 0082 - DESARROLLO DEL PLAN DE SANEAMIENTO Y MANEJO DE VERTIM | AM47: 0 | AN47: 0 | AO47: 5804963849 | AP47: 5804963849 | AQ47: 0 | AR47: 4148410162 | AS47: 0.714631524 | AT47: 881459587 | AU47: 881459587 | AV47: 775094100
A48: 334011602070000 | B48: CUIDADO Y MANTENIMIENTO DEL AMBIENTE CONSTRUIDO | C48: =C49 -> 0 | D48: =D49 -> 0 | E48: 328048960533 | F48: 328048960533 | G48: 0 | H48: 321730494652 | I48: 0.9807392596 | J48: =J49 -> -617669150 | K48: 4497978758 | L48: 1820487123 | M48: 334011602070000 | N48: CUIDADO Y MANTENIMIENTO DEL AMBIENTE CONSTRUIDO | O48: =O49 -> 0 | P48: =P49 -> 0 | Q48: =Q49 -> 41806255628 | R48: =R49 -> 41806255628 | S48: =S49 -> 0 | T48: =T49 -> 39259233760 | U48: 0.9390755802 | V48: =V49 -> 0 | W48: =W49 -> 2547021868 | X48: =X49 -> 0 | Y48: 334011602070000 | Z48: CUIDADO Y MANTENIMIENTO DEL AMBIENTE CONSTRUIDO | AA48: =AA49 -> 0 | AB48: =AB49 -> 0 | AC48: =AC49 -> 636755468 | AD48: =AD49 -> 636755468 | AE48: =AE49 -> 0 | AF48: =AF49 -> 0 | AG48: 0 | AH48: =AH49 -> 0 | AI48: =AI49 -> 636755468 | AJ48: 0 | AK48: 334011602070000 | AL48: CUIDADO Y MANTENIMIENTO DEL AMBIENTE CONSTRUIDO | AM48: =AM49 -> 0 | AN48: =AN49 -> 0 | AO48: =AO49 -> 370491971629 | AP48: =AP49 -> 370491971629 | AQ48: =AQ49 -> 0 | AR48: =AR49 -> 360989728412 | AS48: 0.974352364 | AT48: =AT49 -> -617669150 | AU48: =AU49 -> 7681756094 | AV48: =AV49 -> 1820487123
A49: 334011602073700 | B49: PROVISIÓN Y MEJORAMIENTO DE SERVICIOS PÚBLICOS | C49: =C50+C51+C52+C53+C54+C55+C56 -> 0 | D49: =D50+D51+D52+D53+D54+D55+D56 -> 0 | E49: 328048960533 | F49: 328048960533 | G49: 0 | H49: 321730494652 | I49: 0.9807392596 | J49: =J50+J51+J52+J53+J54+J55+J56 -> -617669150 | K49: 4497978758 | L49: 1820487123 | M49: 334011602073700 | N49: PROVISIÓN Y MEJORAMIENTO DE SERVICIOS PÚBLICOS | O49: =O50+O51+O52+O53+O54+O55+O56 -> 0 | P49: =P50+P51+P52+P53+P54+P55+P56 -> 0 | Q49: =Q50+Q51+Q52+Q53+Q54+Q55+Q56 -> 41806255628 | R49: =R50+R51+R52+R53+R54+R55+R56 -> 41806255628 | S49: =S50+S51+S52+S53+S54+S55+S56 -> 0 | T49: =T50+T51+T52+T53+T54+T55+T56 -> 39259233760 | U49: 0.9390755802 | V49: =V50+V51+V52+V53+V54+V55+V56 -> 0 | W49: =W50+W51+W52+W53+W54+W55+W56 -> 2547021868 | X49: =X50+X51+X52+X53+X54+X55+X56 -> 0 | Y49: 334011602073700 | Z49: PROVISIÓN Y MEJORAMIENTO DE SERVICIOS PÚBLICOS | AA49: =AA50+AA51+AA52+AA53+AA54+AA55+AA56 -> 0 | AB49: =AB50+AB51+AB52+AB53+AB54+AB55+AB56 -> 0 | AC49: =AC50+AC51+AC52+AC53+AC54+AC55+AC56 -> 636755468 | AD49: =AD50+AD51+AD52+AD53+AD54+AD55+AD56 -> 636755468 | AE49: =AE50+AE51+AE52+AE53+AE54+AE55+AE56 -> 0 | AF49: =AF50+AF51+AF52+AF53+AF54+AF55+AF56 -> 0 | AG49: 0 | AH49: =AH50+AH51+AH52+AH53+AH54+AH55+AH56 -> 0 | AI49: =AI50+AI51+AI52+AI53+AI54+AI55+AI56 -> 636755468 | AJ49: 0 | AK49: 334011602073700 | AL49: PROVISIÓN Y MEJORAMIENTO DE SERVICIOS PÚBLICOS | AM49: =AM50+AM51+AM52+AM53+AM54+AM55+AM56 -> 0 | AN49: =AN50+AN51+AN52+AN53+AN54+AN55+AN56 -> 0 | AO49: =AO50+AO51+AO52+AO53+AO54+AO55+AO56 -> 370491971629 | AP49: =AP50+AP51+AP52+AP53+AP54+AP55+AP56 -> 370491971629 | AQ49: =AQ50+AQ51+AQ52+AQ53+AQ54+AQ55+AQ56 -> 0 | AR49: =AR50+AR51+AR52+AR53+AR54+AR55+AR56 -> 360989728412 | AS49: 0.974352364 | AT49: =AT50+AT51+AT52+AT53+AT54+AT55+AT56 -> -617669150 | AU49: =AU50+AU51+AU52+AU53+AU54+AU55+AU56 -> 7681756094 | AV49: =AV50+AV51+AV52+AV53+AV54+AV55+AV56 -> 1820487123
A50: 334011602073700190019 | B50: 0019 - CONSTRUCCIÓN DE REDES LOCALES PARA SERVICIO DE ALCANT | C50: 0 | D50: 0 | E50: 11668762025 | F50: 11668762025 | G50: 0 | H50: 11156590792 | I50: 0.9561074918 | J50: 0 | K50: 0 | L50: 512171233 | M50: 334011602073700190019 | N50: 0019 - CONSTRUCCIÓN DE REDES LOCALES PARA SERVICIO DE ALCANT | O50: 0 | P50: 0 | Q50: 5275090598 | R50: 5275090598 | S50: 0 | T50: 5275090598 | U50: 1 | V50: 0 | W50: 0 | X50: 0 | Y50: 334011602073700190019 | Z50: 0019 - CONSTRUCCIÓN DE REDES LOCALES PARA SERVICIO DE ALCANT | AA50: 0 | AB50: 0 | AC50: 0 | AD50: 0 | AE50: 0 | AF50: 0 | AG50: 0 | AH50: 0 | AI50: 0 | AJ50: 0 | AK50: 334011602073700190019 | AL50: 0019 - CONSTRUCCIÓN DE REDES LOCALES PARA SERVICIO DE ALCANT | AM50: 0 | AN50: 0 | AO50: 16943852623 | AP50: 16943852623 | AQ50: 0 | AR50: 16431681390 | AS50: 0.9697724452 | AT50: 0 | AU50: 0 | AV50: 512171233
A51: 334011602073700190020 | B51: 0020 - CONSTRUCCIÓN DE REDES LOCALES PARA EL SERVICIO DE ALC | C51: 0 | D51: 0 | E51: 14636414189 | F51: 14636414189 | G51: 0 | H51: 14102337334 | I51: 0.963510403 | J51: 0 | K51: 0 | L51: 534076855 | M51: 334011602073700190020 | N51: 0020 - CONSTRUCCIÓN DE REDES LOCALES PARA EL SERVICIO DE ALC | O51: 0 | P51: 0 | Q51: 7487307593 | R51: 7487307593 | S51: 0 | T51: 7487307593 | U51: 1 | V51: 0 | W51: 0 | X51: 0 | Y51: 334011602073700190020 | Z51: 0020 - CONSTRUCCIÓN DE REDES LOCALES PARA EL SERVICIO DE ALC | AA51: 0 | AB51: 0 | AC51: 0 | AD51: 0 | AE51: 0 | AF51: 0 | AG51: 0 | AH51: 0 | AI51: 0 | AJ51: 0 | AK51: 334011602073700190020 | AL51: 0020 - CONSTRUCCIÓN DE REDES LOCALES PARA EL SERVICIO DE ALC | AM51: 0 | AN51: 0 | AO51: 22123721782 | AP51: 22123721782 | AQ51: 0 | AR51: 21589644927 | AS51: 0.9758595385 | AT51: 0 | AU51: 0 | AV51: 534076855
A52: 334011602073700190050 | B52: 0050 - RENOVACIÓN Y/O REPOSICIÓN DE LOS SISTEMAS DE ABASTECI | C52: 0 | D52: 0 | E52: 208376737736 | F52: 208376737736 | G52: 0 | H52: 203104519943 | I52: 0.9746986259 | J52: -617669150 | K52: 4497978758 | L52: 774239035 | M52: 334011602073700190050 | N52: 0050 - RENOVACIÓN Y/O REPOSICIÓN DE LOS SISTEMAS DE ABASTECI | O52: 0 | P52: 0 | Q52: 26174971204 | R52: 26174971204 | S52: 0 | T52: 23627949336 | U52: 0.9026924672 | V52: 0 | W52: 2547021868 | X52: 0 | Y52: 334011602073700190050 | Z52: 0050 - RENOVACIÓN Y/O REPOSICIÓN DE LOS SISTEMAS DE ABASTECI | AA52: 0 | AB52: 0 | AC52: 636755468 | AD52: 636755468 | AE52: 0 | AF52: 0 | AG52: 0 | AH52: 0 | AI52: 636755468 | AJ52: 0 | AK52: 334011602073700190050 | AL52: 0050 - RENOVACIÓN Y/O REPOSICIÓN DE LOS SISTEMAS DE ABASTECI | AM52: 0 | AN52: 0 | AO52: 235188464408 | AP52: 235188464408 | AQ52: 0 | AR52: 226732469279 | AS52: 0.9640458764 | AT52: -617669150 | AU52: 7681756094 | AV52: 774239035
A53: 334011602073700190054 | B53: 0054 - DESARROLLO DE ACCIONES PARA EL SANEAMIENTO DEL RÍO BO | C53: 0 | D53: 0 | E53: 65381426116 | F53: 65381426116 | G53: 0 | H53: 65381426116 | I53: 1 | J53: 0 | K53: 0 | L53: 0 | M53: 334011602073700190054 | N53: 0054 - DESARROLLO DE ACCIONES PARA EL SANEAMIENTO DEL RÍO BO | O53: 0 | P53: 0 | Q53: 0 | R53: 0 | S53: 0 | T53: 0 | U53: 0 | V53: 0 | W53: 0 | X53: 0 | Y53: 334011602073700190054 | Z53: 0054 - DESARROLLO DE ACCIONES PARA EL SANEAMIENTO DEL RÍO BO | AA53: 0 | AB53: 0 | AC53: 0 | AD53: 0 | AE53: 0 | AF53: 0 | AG53: 0 | AH53: 0 | AI53: 0 | AJ53: 0 | AK53: 334011602073700190054 | AL53: 0054 - DESARROLLO DE ACCIONES PARA EL SANEAMIENTO DEL RÍO BO | AM53: 0 | AN53: 0 | AO53: 65381426116 | AP53: 65381426116 | AQ53: 0 | AR53: 65381426116 | AS53: 1 | AT53: 0 | AU53: 0 | AV53: 0
A54: 334011602073700190068 | B54: 0068 - ADECUACIÓN DE LAS REDES ASOCIADAS A LA INFRAESTRUCTUR | C54: 0 | D54: 0 | E54: 10754705083 | F54: 10754705083 | G54: 0 | H54: 10754705083 | I54: 1 | J54: 0 | K54: 0 | L54: 0 | M54: 334011602073700190068 | N54: 0068 - ADECUACIÓN DE LAS REDES ASOCIADAS A LA INFRAESTRUCTUR | O54: 0 | P54: 0 | Q54: 0 | R54: 0 | S54: 0 | T54: 0 | U54: 0 | V54: 0 | W54: 0 | X54: 0 | Y54: 334011602073700190068 | Z54: 0068 - ADECUACIÓN DE LAS REDES ASOCIADAS A LA INFRAESTRUCTUR | AA54: 0 | AB54: 0 | AC54: 0 | AD54: 0 | AE54: 0 | AF54: 0 | AG54: 0 | AH54: 0 | AI54: 0 | AJ54: 0 | AK54: 334011602073700190068 | AL54: 0068 - ADECUACIÓN DE LAS REDES ASOCIADAS A LA INFRAESTRUCTUR | AM54: 0 | AN54: 0 | AO54: 10754705083 | AP54: 10754705083 | AQ54: 0 | AR54: 10754705083 | AS54: 1 | AT54: 0 | AU54: 0 | AV54: 0
A55: 334011602073700197334 | B55: 7334 - CONSTRUCCIÓN Y EXPANSIÓN DEL SISTEMA DE ABASTECIMIENT | C55: 0 | D55: 0 | E55: 13433170360 | F55: 13433170360 | G55: 0 | H55: 13433170360 | I55: 1 | J55: 0 | K55: 0 | L55: 0 | M55: 334011602073700197334 | N55: 7334 - CONSTRUCCIÓN Y EXPANSIÓN DEL SISTEMA DE ABASTECIMIENT | O55: 0 | P55: 0 | Q55: 0 | R55: 0 | S55: 0 | T55: 0 | U55: 0 | V55: 0 | W55: 0 | X55: 0 | Y55: 334011602073700197334 | Z55: 7334 - CONSTRUCCIÓN Y EXPANSIÓN DEL SISTEMA DE ABASTECIMIENT | AA55: 0 | AB55: 0 | AC55: 0 | AD55: 0 | AE55: 0 | AF55: 0 | AG55: 0 | AH55: 0 | AI55: 0 | AJ55: 0 | AK55: 334011602073700197334 | AL55: 7334 - CONSTRUCCIÓN Y EXPANSIÓN DEL SISTEMA DE ABASTECIMIENT | AM55: 0 | AN55: 0 | AO55: 13433170360 | AP55: 13433170360 | AQ55: 0 | AR55: 13433170360 | AS55: 1 | AT55: 0 | AU55: 0 | AV55: 0
A56: 334011602073700197338 | B56: 7338 - CONSTRUCCIÓN DE REDES LOCALES PARA EL SERVICIO DE ACU | C56: 0 | D56: 0 | E56: 3797745024 | F56: 3797745024 | G56: 0 | H56: 3797745024 | I56: 1 | J56: 0 | K56: 0 | L56: 0 | M56: 334011602073700197338 | N56: 7338 - CONSTRUCCIÓN DE REDES LOCALES PARA EL SERVICIO DE ACU | O56: 0 | P56: 0 | Q56: 2868886233 | R56: 2868886233 | S56: 0 | T56: 2868886233 | U56: 1 | V56: 0 | W56: 0 | X56: 0 | Y56: 334011602073700197338 | Z56: 7338 - CONSTRUCCIÓN DE REDES LOCALES PARA EL SERVICIO DE ACU | AA56: 0 | AB56: 0 | AC56: 0 | AD56: 0 | AE56: 0 | AF56: 0 | AG56: 0 | AH56: 0 | AI56: 0 | AJ56: 0 | AK56: 334011602073700197338 | AL56: 7338 - CONSTRUCCIÓN DE REDES LOCALES PARA EL SERVICIO DE ACU | AM56: 0 | AN56: 0 | AO56: 6666631257 | AP56: 6666631257 | AQ56: 0 | AR56: 6666631257 | AS56: 1 | AT56: 0 | AU56: 0 | AV56: 0
